Body Name,ONS SNAC,Pay Date,Transaction No,Amount �,Supplier Name,Company Registration No,Department,Account Name,CIPFA Service Reporting
Swale Borough Council,29UM,02/03/2016,1139228,400.00,ACORN MAINTENANCE SERVICES,3546898                  ,HOUSING SERVICES,Staying Put small repairs (contractors),Housing
Swale Borough Council,29UM,02/03/2016,1139433,4457.74,ACORN MAINTENANCE SERVICES,3546898                  ,HOUSING SERVICES,Housing Renovation Grants,Not used in this Structure
Swale Borough Council,29UM,02/03/2016,1139274,4995.00,ALCIUM SOFTWARE LIMITED,4157769                  ,ECONOMIC DEVELOPMENT,Fees And Services,Planning and Development Services
Swale Borough Council,29UM,02/03/2016,1139012,34.25,ALLSTAR BUSINESS SOLUTIONS LTD - (DT),1073098                  ,DEMOCRATIC & ELECTORAL SERVICES,Petrol/Derv & Oil,Corporate & Democratic Core
Swale Borough Council,29UM,02/03/2016,1139012,41.85,ALLSTAR BUSINESS SOLUTIONS LTD - (DT),1073098                  ,SERVICE DELIVERY,Petrol/Derv & Oil,Cultural and Related Services
Swale Borough Council,29UM,02/03/2016,1139012,180.77,ALLSTAR BUSINESS SOLUTIONS LTD - (DT),1073098                  ,ENVIRONMENTAL RESPONSE TEAM,Fuel For Contract Vehicles,Internal Trading Cost Centres
Swale Borough Council,29UM,02/03/2016,1139012,48.05,ALLSTAR BUSINESS SOLUTIONS LTD - (DT),1073098                  ,LEISURE & OPEN SPACES,Fuel For Contract Vehicles,Cultural and Related Services
Swale Borough Council,29UM,02/03/2016,1139390,600.00,BARTON COURT CARE HOME,                         ,TOURISM & SPORTS DEVELOPMENT,Grants & Subscriptions,Cultural and Related Services
Swale Borough Council,29UM,02/03/2016,1139315,1960.00,BT DEVELOPMENTS,                         ,HOUSING SERVICES,B & B - Landlords Payments,Housing
Swale Borough Council,29UM,02/03/2016,1139302,1165.00,CAPITA BUSINESS SERVICES LTD,                         ,REVENUE SERVICES,Fees And Services,Housing
Swale Borough Council,29UM,02/03/2016,1139138,358.00,CCS MEDIA LTD,                         ,COMMISSIONING & CUSTOMER CONTACT,Equipment Purchase,Internal Trading Cost Centres
Swale Borough Council,29UM,02/03/2016,1139139,1080.00,CCS MEDIA LTD,                         ,COMMISSIONING & CUSTOMER CONTACT,Equipment Purchase,Internal Trading Cost Centres
Swale Borough Council,29UM,02/03/2016,1139197,1300.00,CCS MEDIA LTD,                         ,COMMISSIONING & CUSTOMER CONTACT,Equipment Purchase,Internal Trading Cost Centres
Swale Borough Council,29UM,02/03/2016,1139204,1000.00,COASTAL CAR SERVICES,                         ,SERVICE DELIVERY,Maintenance - Grounds,Cultural and Related Services
Swale Borough Council,29UM,02/03/2016,1139313,115.66,COMENSURA LTD,04085767                 ,HOUSING SERVICES,Agency/Contract Staff,Housing
Swale Borough Council,29UM,02/03/2016,1139313,1693.49,COMENSURA LTD,04085767                 ,MKIP LEGAL SERVICES,Agency/Contract Staff,Internal Trading Cost Centres
Swale Borough Council,29UM,02/03/2016,1139313,364.96,COMENSURA LTD,04085767                 ,HOUSING SERVICES,Agency/Contract Staff,Housing
Swale Borough Council,29UM,02/03/2016,1139057,620.50,EDF ENERGY,2228297                  ,TOURISM & SPORTS DEVELOPMENT,Electricity,Cultural and Related Services
Swale Borough Council,29UM,02/03/2016,1139329,377.83,EDF ENERGY,2228297                  ,LEISURE & OPEN SPACES,Electricity,Cultural and Related Services
Swale Borough Council,29UM,02/03/2016,1139196,1200.00,FAMILY MOSAIC HOUSING,                         ,HOUSING SERVICES,Staying Put - Materials,Housing
Swale Borough Council,29UM,02/03/2016,1139275,4000.00,FAVERSHAM HOP FESTIVAL,                         ,ECONOMY & COMMUNITIES,Regeneration Fund Expenditure,Ledger/Suspense Codes
Swale Borough Council,29UM,02/03/2016,1139151,819.60,FMG CONSULTING LTD,7309324                  ,LEISURE & OPEN SPACES,Consultancy/Specialist Advice,Cultural and Related Services
Swale Borough Council,29UM,02/03/2016,1139063,726.60,HALAROSE LIMITED,1362834                  ,DEMOCRATIC & ELECTORAL SERVICES,Computer Equipment & Materials,Central Services to the Public
Swale Borough Council,29UM,02/03/2016,1139063,7992.54,HALAROSE LIMITED,1362834                  ,DEMOCRATIC & ELECTORAL SERVICES,Payments in Year,Ledger/Suspense Codes
Swale Borough Council,29UM,02/03/2016,1139063,7992.54,HALAROSE LIMITED,1362834                  ,DEMOCRATIC & ELECTORAL SERVICES,Payments in Year,Ledger/Suspense Codes
Swale Borough Council,29UM,02/03/2016,1139063,726.60,HALAROSE LIMITED,1362834                  ,DEMOCRATIC & ELECTORAL SERVICES,Computer Equipment & Materials,Central Services to the Public
Swale Borough Council,29UM,02/03/2016,1139379,3194.00,HEADSETS4BUSINESS LTD,07824890                 ,COMMISSIONING & CUSTOMER CONTACT,Equipment,Not used in this Structure
Swale Borough Council,29UM,02/03/2016,1139431,798.30,HUBBARD & HOUGHTON CONSTRUCTION LTD,                         ,HOUSING SERVICES,Housing Renovation Grants,Not used in this Structure
Swale Borough Council,29UM,02/03/2016,1139432,4950.00,HUBBARD & HOUGHTON CONSTRUCTION LTD,                         ,HOUSING SERVICES,Housing Renovation Grants,Not used in this Structure
Swale Borough Council,29UM,02/03/2016,1139413,200.00,J N CLEARANCE,                         ,LEISURE & OPEN SPACES,Maintenance - Grounds,Environmental and Regulatory Services
Swale Borough Council,29UM,02/03/2016,1139413,50.00,J N CLEARANCE,                         ,LEISURE & OPEN SPACES,Maintenance - Grounds,Environmental and Regulatory Services
Swale Borough Council,29UM,02/03/2016,1139413,300.00,J N CLEARANCE,                         ,LEISURE & OPEN SPACES,Maintenance - Grounds,Cultural and Related Services
Swale Borough Council,29UM,02/03/2016,1139430,762.84,JCBS BUILDING SERVICES,                         ,HOUSING SERVICES,Housing Renovation Grants,Not used in this Structure
Swale Borough Council,29UM,02/03/2016,1139321,2843.64,KENT COUNTY COUNCIL,                         ,COMMISSIONING & CUSTOMER CONTACT,Contracts,Internal Trading Cost Centres
Swale Borough Council,29UM,02/03/2016,1139166,321.10,KENT COUNTY COUNCIL (KCS),                         ,REVENUE SERVICES,Computer Equipment & Materials,Housing
Swale Borough Council,29UM,02/03/2016,1139049,8386.30,KINGDOM SECURITY LIMITED,                         ,ENVIRONMENTAL RESPONSE TEAM,Fees And Services,Planning and Development Services
Swale Borough Council,29UM,02/03/2016,1139393,2562.00,LILAC ESTATES,                         ,HOUSING SERVICES,B & B - Landlords Payments,Housing
Swale Borough Council,29UM,02/03/2016,1139209,993.00,MAYLOW CONSTRUCTION LTD,                         ,LEISURE & OPEN SPACES,Maintenance - Grounds,Cultural and Related Services
Swale Borough Council,29UM,02/03/2016,1139210,1784.00,MAYLOW CONSTRUCTION LTD,                         ,LEISURE & OPEN SPACES,Play Equipment Maintenance - CIS,Cultural and Related Services
Swale Borough Council,29UM,02/03/2016,1139211,835.00,MAYLOW CONSTRUCTION LTD,                         ,LEISURE & OPEN SPACES,Play Equipment Maintenance - CIS,Cultural and Related Services
Swale Borough Council,29UM,02/03/2016,1138945,482.17,MEDWAY ACCOMMODATION LIMITED,                         ,HOUSING SERVICES,B & B - Landlords Payments,Housing
Swale Borough Council,29UM,02/03/2016,1138945,2314.40,MEDWAY ACCOMMODATION LIMITED,                         ,HOUSING SERVICES,B & B - Landlords Payments,Housing
Swale Borough Council,29UM,02/03/2016,1139061,513.83,MEDWAY ACCOMMODATION LIMITED,                         ,HOUSING SERVICES,B & B - Landlords Payments,Housing
Swale Borough Council,29UM,02/03/2016,1139061,2466.40,MEDWAY ACCOMMODATION LIMITED,                         ,HOUSING SERVICES,B & B - Landlords Payments,Housing
Swale Borough Council,29UM,02/03/2016,1139223,2283.20,MEDWAY ACCOMMODATION LIMITED,                         ,HOUSING SERVICES,B & B - Landlords Payments,Housing
Swale Borough Council,29UM,02/03/2016,1139223,475.67,MEDWAY ACCOMMODATION LIMITED,                         ,HOUSING SERVICES,B & B - Landlords Payments,Housing
Swale Borough Council,29UM,02/03/2016,1139368,585.00,METRIC GROUP LTD,2560839                  ,CAR PARKS,Fees - Licence,Highway and Transport Services
Swale Borough Council,29UM,02/03/2016,1139370,585.00,METRIC GROUP LTD,2560839                  ,CAR PARKS,Fees - Licence,Highway and Transport Services
Swale Borough Council,29UM,02/03/2016,1139405,500.00,PETER BRETT ASSOCIATES LLP,OC334398                 ,PLANNING SERVICES,Fees And Services,Planning and Development Services
Swale Borough Council,29UM,02/03/2016,1139506,16.67,WHITEFRIARS CAR PARK,,TOURISM & SPORTS DEVELOPMENT,Car Park Fees,Internal Trading Cost Centres
Swale Borough Council,29UM,02/03/2016,1139507,199.98,EASYLOCKS,,CONTRACT & PROCUREMENT,Non-Planned Building Maintenance,Environmental and Regulatory Services
Swale Borough Council,29UM,02/03/2016,1139508,158.00,MARKS & SPENCER,                         ,DEMOCRATIC & ELECTORAL SERVICES,Equipment Purchase,Corporate & Democratic Core
Swale Borough Council,29UM,02/03/2016,1139508,31.50,SOUTHERN REGALIA LTD,                         ,DEMOCRATIC & ELECTORAL SERVICES,Equipment Purchase,Corporate & Democratic Core
Swale Borough Council,29UM,02/03/2016,1139508,53.40,AMAZON,                         ,DEMOCRATIC & ELECTORAL SERVICES,Equipment Purchase,Corporate & Democratic Core
Swale Borough Council,29UM,02/03/2016,1139508,60.73,AMAZON,                         ,DEMOCRATIC & ELECTORAL SERVICES,Stationery,Corporate & Democratic Core
Swale Borough Council,29UM,02/03/2016,1139508,2.50,WILKO SITTINGBOURNE,,DEMOCRATIC & ELECTORAL SERVICES,Equipment Purchase,Corporate & Democratic Core
Swale Borough Council,29UM,02/03/2016,1139508,5.00,WILKO SITTINGBOURNE,                         ,DEMOCRATIC & ELECTORAL SERVICES,Equipment Purchase,Corporate & Democratic Core
Swale Borough Council,29UM,02/03/2016,1139508,13.00,AMAZON,                         ,DEMOCRATIC & ELECTORAL SERVICES,Equipment Purchase,Corporate & Democratic Core
Swale Borough Council,29UM,02/03/2016,1139508,25.00,FLOWERS BY BEATRICE,,DEMOCRATIC & ELECTORAL SERVICES,Hospitality Allowance - Mayor,Corporate & Democratic Core
Swale Borough Council,29UM,02/03/2016,1139508,25.00,FLOWERS BY BEATRICE,,DEMOCRATIC & ELECTORAL SERVICES,Floral Tributes,Corporate & Democratic Core
Swale Borough Council,29UM,02/03/2016,1139508,13.95,SAINSBURY'S,,DEMOCRATIC & ELECTORAL SERVICES,Hospitality Allowance - Mayor,Corporate & Democratic Core
Swale Borough Council,29UM,02/03/2016,1139509,204.15,AMAZON,,PLANNING SERVICES,Equipment Purchase,Planning and Development Services
Swale Borough Council,29UM,02/03/2016,1139510,37.50,AUTOWASH,,HOUSING SERVICES,General Maintenance,Housing
Swale Borough Council,29UM,02/03/2016,1139511,149.95,LOCAL INFORM,                         ,POLICY,Conference,Corporate & Democratic Core
Swale Borough Council,29UM,02/03/2016,1139511,140.00,HEMMING GROUP LTD,                         ,CHIEF EXECUTIVE,Grants & Subscriptions,Internal Trading Cost Centres
Swale Borough Council,29UM,02/03/2016,1139512,1206.00,HMCTS,                         ,REVENUE SERVICES,Fees And Services,Central Services to the Public
Swale Borough Council,29UM,02/03/2016,1139512,66.00,HMCTS,                         ,REVENUE SERVICES,Fees And Services,Central Services to the Public
Swale Borough Council,29UM,02/03/2016,1139513,21.80,HOMEBASE,,HOUSING SERVICES,Staying Put - Materials,Housing
Swale Borough Council,29UM,02/03/2016,1139513,60.51,MORRISONS,,HOUSING SERVICES,Fuel For Contract Vehicles,Housing
Swale Borough Council,29UM,02/03/2016,1139513,23.72,HOMEBASE,,HOUSING SERVICES,Staying Put - Materials,Housing
Swale Borough Council,29UM,02/03/2016,1139513,19.50,A S BELL LTD,,HOUSING SERVICES,Staying Put - Materials,Housing
Swale Borough Council,29UM,02/03/2016,1139513,49.99,HALFORDS,,HOUSING SERVICES,Staying Put - Materials,Housing
Swale Borough Council,29UM,02/03/2016,1139513,30.16,HOMEBASE,,HOUSING SERVICES,Staying Put - Materials,Housing
Swale Borough Council,29UM,02/03/2016,1139513,28.47,HOMEBASE,,HOUSING SERVICES,Staying Put - Materials,Housing
Swale Borough Council,29UM,02/03/2016,1139513,6.15,DUNELM ,,HOUSING SERVICES,Staying Put - Materials,Housing
Swale Borough Council,29UM,02/03/2016,1139514,27.48,AMAZON,,MKIP LEGAL SERVICES,Equipment Purchase,Internal Trading Cost Centres
Swale Borough Council,29UM,02/03/2016,1139514,-27.48,AMAZON,,MKIP LEGAL SERVICES,Equipment Purchase,Internal Trading Cost Centres
Swale Borough Council,29UM,02/03/2016,1139514,27.48,AMAZON,,MKIP LEGAL SERVICES,Equipment Purchase,Internal Trading Cost Centres
Swale Borough Council,29UM,02/03/2016,1139514,185.00,CILEX,,MKIP LEGAL SERVICES,Training - Courses,Internal Trading Cost Centres
Swale Borough Council,29UM,02/03/2016,1139514,20.98,AMAZON,,MKIP LEGAL SERVICES,Equipment Purchase,Internal Trading Cost Centres
Swale Borough Council,29UM,02/03/2016,1139515,69.00,AMAZON,,ENVIRONMENTAL HEALTH,Protective Clothing,Internal Trading Cost Centres
Swale Borough Council,29UM,02/03/2016,1139224,923.08,REARDON PROPERTIES,                         ,HOUSING SERVICES,B & B - Landlords Payments,Housing
Swale Borough Council,29UM,02/03/2016,1139225,784.60,REARDON PROPERTIES,                         ,HOUSING SERVICES,B & B - Landlords Payments,Housing
Swale Borough Council,29UM,02/03/2016,1139303,1444.51,SHEPPEY MATTERS,3946296                  ,ECONOMIC DEVELOPMENT,Fees And Services,Planning and Development Services
Swale Borough Council,29UM,02/03/2016,1139219,640.37,SOUTHERN WATER SERVICES LIMITED,2366670                  ,CONTRACT & PROCUREMENT,Water - Metered,Environmental and Regulatory Services
Swale Borough Council,29UM,02/03/2016,1139320,284.00,THOMSON REUTERS,1679046                  ,MKIP LEGAL SERVICES,"Books, Journals & e - resources",Internal Trading Cost Centres
Swale Borough Council,29UM,02/03/2016,1138918,630.00,TRAFALGAR TAVERN LTD,07999329                 ,HOUSING SERVICES,B & B - Landlords Payments,Housing
Swale Borough Council,29UM,02/03/2016,1139146,1155.00,TRAFALGAR TAVERN LTD,07999329                 ,HOUSING SERVICES,B & B - Landlords Payments,Housing
Swale Borough Council,29UM,02/03/2016,1139206,1155.00,TRAFALGAR TAVERN LTD,07999329                 ,HOUSING SERVICES,B & B - Landlords Payments,Housing
Swale Borough Council,29UM,02/03/2016,1139415,910.00,TRAFALGAR TAVERN LTD,07999329                 ,HOUSING SERVICES,B & B - Landlords Payments,Housing
Swale Borough Council,29UM,02/03/2016,1139335,1230.00,VENN GROUP LIMITED,                         ,MKIP LEGAL SERVICES,Agency/Contract Staff,Internal Trading Cost Centres
Swale Borough Council,29UM,02/03/2016,1139304,1708.48,WICKSTEED LEISURE LTD,603152                   ,LEISURE & OPEN SPACES,Equipment Purchase,Cultural and Related Services
Swale Borough Council,29UM,02/03/2016,1139428,469.20,WILLOW TREE HOME SOLUTIONS LTD,                         ,HOUSING SERVICES,Housing Renovation Grants,Not used in this Structure
Swale Borough Council,29UM,02/03/2016,1139429,710.62,WILLOW TREE HOME SOLUTIONS LTD,                         ,HOUSING SERVICES,Housing Renovation Grants,Not used in this Structure
Swale Borough Council,29UM,09/03/2016,1139342,315.00,4TH MILTON & ST MARYS SCOUT GROUP,                         ,COMMUNITY SAFETY,Grants & Subscriptions,Central Services to the Public
Swale Borough Council,29UM,09/03/2016,1139341,300.00,5TH SITTINGBOURNE SCOUT GROUP,                         ,COMMUNITY SAFETY,Grants & Subscriptions,Central Services to the Public
Swale Borough Council,29UM,09/03/2016,1139420,383.00,ACORN MAINTENANCE SERVICES,3546898                  ,HOUSING SERVICES,Staying Put small repairs (contractors),Housing
Swale Borough Council,29UM,09/03/2016,1139421,514.00,ACORN MAINTENANCE SERVICES,3546898                  ,HOUSING SERVICES,Staying Put small repairs (contractors),Housing
Swale Borough Council,29UM,09/03/2016,1139679,3593.81,ACORN MAINTENANCE SERVICES,3546898                  ,HOUSING SERVICES,Housing Renovation Grants,Not used in this Structure
Swale Borough Council,29UM,09/03/2016,1139680,4220.85,ACORN MAINTENANCE SERVICES,3546898                  ,HOUSING SERVICES,Housing Renovation Grants,Not used in this Structure
Swale Borough Council,29UM,09/03/2016,1139330,354.39,ACR LONDON LTD,4097241                  ,PROPERTY SERVICES,Non-Planned Building Maintenance,Corporate & Democratic Core
Swale Borough Council,29UM,09/03/2016,1139543,1000.00,AMTEC CO-OP LTD FOR CSI SITTINGBOURNE PROJECT,                         ,TOURISM & SPORTS DEVELOPMENT,Grants & Subscriptions,Cultural and Related Services
Swale Borough Council,29UM,09/03/2016,1139389,300.00,BARTON COURT CARE HOME,                         ,COMMUNITY SAFETY,Grants & Subscriptions,Central Services to the Public
Swale Borough Council,29UM,09/03/2016,1139565,1269.55,BBM SUSTAINABLE DESIGN LTD,4597504                  ,COMMUNITY SAFETY,Capitalised Fees And Charges,Not used in this Structure
Swale Borough Council,29UM,09/03/2016,1139576,913.00,BECKWITH CONSULTING LTD,5846072                  ,LEISURE & OPEN SPACES,Agency/Contract Staff,Internal Trading Cost Centres
Swale Borough Council,29UM,09/03/2016,1139577,2050.00,BECKWITH CONSULTING LTD,5846072                  ,LEISURE & OPEN SPACES,Consultancy/Specialist Advice,Cultural and Related Services
Swale Borough Council,29UM,09/03/2016,1139346,1250.00,BENSTEDS CHARITY WAR MEMORIAL FUND,                         ,COMMUNITY SAFETY,Grants & Subscriptions,Central Services to the Public
Swale Borough Council,29UM,09/03/2016,1139464,829.44,BLENWOOD LTD,4383277                  ,LEISURE & OPEN SPACES,Nursery Stock,Cultural and Related Services
Swale Borough Council,29UM,09/03/2016,1139465,1334.13,BLENWOOD LTD,4383277                  ,LEISURE & OPEN SPACES,Forrestry/Woodland,Cultural and Related Services
Swale Borough Council,29UM,09/03/2016,1139534,2061.94,BLENWOOD LTD,4383277                  ,LEISURE & OPEN SPACES,Nursery Stock,Environmental and Regulatory Services
Swale Borough Council,29UM,09/03/2016,1139582,835.44,BLENWOOD LTD,4383277                  ,LEISURE & OPEN SPACES,Maintenance - Grounds,Environmental and Regulatory Services
Swale Borough Council,29UM,09/03/2016,1139297,250.00,BLUE TOWN REMEMBERED,                         ,COMMUNITY SAFETY,Grants & Subscriptions,Central Services to the Public
Swale Borough Council,29UM,09/03/2016,1139450,950.00,BLUE TOWN REMEMBERED,                         ,COMMUNITY SAFETY,Grants & Subscriptions,Central Services to the Public
Swale Borough Council,29UM,09/03/2016,1139457,1443.00,BREDGAR PARISH COUNCIL,                         ,COMMUNITY SAFETY,Grants & Subscriptions,Central Services to the Public
Swale Borough Council,29UM,09/03/2016,1139233,4637.54,CANON UK LTD,1264300                  ,PROPERTY SERVICES,Equipment Maintenance,Internal Trading Cost Centres
Swale Borough Council,29UM,09/03/2016,1139536,5250.00,CBRE LTD,3536032                  ,PLANNING SERVICES,Fees And Services,Planning and Development Services
Swale Borough Council,29UM,09/03/2016,1139374,599.00,CCS MEDIA LTD,                         ,COMMISSIONING & CUSTOMER CONTACT,Equipment Purchase,Internal Trading Cost Centres
Swale Borough Council,29UM,09/03/2016,1139417,3333.33,CHALKWELL COACH HIRE LTD,2520842                  ,PLANNING SERVICES,Payments in Year,Ledger/Suspense Codes
Swale Borough Council,29UM,09/03/2016,1139418,2324.14,CHALKWELL COACH HIRE LTD,2520842                  ,PLANNING SERVICES,Payments in Year,Ledger/Suspense Codes
Swale Borough Council,29UM,09/03/2016,1139458,375.00,CHURCH JESUS CHRIST LATTER DAY ST,                         ,PROPERTY SERVICES,Rent,Corporate & Democratic Core
Swale Borough Council,29UM,09/03/2016,1139221,500.00,CIPFA BUSINESS LTD,2376684                  ,FINANCIAL SERVICES,Fees And Services,Internal Trading Cost Centres
Swale Borough Council,29UM,09/03/2016,1139278,3410.00,CIPFA BUSINESS LTD,2376684                  ,FINANCIAL SERVICES,Payments in Year,Ledger/Suspense Codes
Swale Borough Council,29UM,09/03/2016,1139468,2680.00,CIPFA BUSINESS LTD,2376684                  ,FINANCIAL SERVICES,Payments in Year,Ledger/Suspense Codes
Swale Borough Council,29UM,09/03/2016,1139469,5790.00,CIPFA BUSINESS LTD,2376684                  ,FINANCIAL SERVICES,Grants & Subscriptions,Internal Trading Cost Centres
Swale Borough Council,29UM,09/03/2016,1139205,363.00,CORPORATE DOCUMENT SERVICES LIMITED,                         ,PLANNING SERVICES,Stationery,Internal Trading Cost Centres
Swale Borough Council,29UM,09/03/2016,1139216,22.50,DCB (KENT) LIMITED,03532339                 ,LEISURE & OPEN SPACES,Non-Planned Building Maintenance,Environmental and Regulatory Services
Swale Borough Council,29UM,09/03/2016,1139216,946.40,DCB (KENT) LIMITED,03532339                 ,COMMUNITY SAFETY,Non-Planned Building Maintenance,Cultural and Related Services
Swale Borough Council,29UM,09/03/2016,1139216,68.41,DCB (KENT) LIMITED,03532339                 ,COMMUNITY SAFETY,Non-Planned Building Maintenance,Cultural and Related Services
Swale Borough Council,29UM,09/03/2016,1139216,188.00,DCB (KENT) LIMITED,03532339                 ,PROPERTY SERVICES,Non-Planned Building Maintenance,Cultural and Related Services
Swale Borough Council,29UM,09/03/2016,1139216,22.50,DCB (KENT) LIMITED,03532339                 ,COMMUNITY SAFETY,Non-Planned Building Maintenance,Cultural and Related Services
Swale Borough Council,29UM,09/03/2016,1139216,268.76,DCB (KENT) LIMITED,03532339                 ,COMMUNITY SAFETY,Non-Planned Building Maintenance,Cultural and Related Services
Swale Borough Council,29UM,09/03/2016,1139216,161.39,DCB (KENT) LIMITED,03532339                 ,COMMUNITY SAFETY,Non-Planned Building Maintenance,Cultural and Related Services
Swale Borough Council,29UM,09/03/2016,1139216,1248.09,DCB (KENT) LIMITED,03532339                 ,PROPERTY SERVICES,Non-Planned Building Maintenance,Trading Undertaking
Swale Borough Council,29UM,09/03/2016,1139216,105.88,DCB (KENT) LIMITED,03532339                 ,ICT,Equipment Purchase,Internal Trading Cost Centres
Swale Borough Council,29UM,09/03/2016,1139216,50.49,DCB (KENT) LIMITED,03532339                 ,PROPERTY SERVICES,Non-Planned Building Maintenance,Corporate & Democratic Core
Swale Borough Council,29UM,09/03/2016,1139216,84.37,DCB (KENT) LIMITED,03532339                 ,PROPERTY SERVICES,Non-Planned Building Maintenance,Corporate & Democratic Core
Swale Borough Council,29UM,09/03/2016,1139216,265.22,DCB (KENT) LIMITED,03532339                 ,PROPERTY SERVICES,Non-Planned Building Maintenance,Corporate & Democratic Core
Swale Borough Council,29UM,09/03/2016,1139216,201.62,DCB (KENT) LIMITED,03532339                 ,PROPERTY SERVICES,Non-Planned Building Maintenance,Corporate & Democratic Core
Swale Borough Council,29UM,09/03/2016,1139216,114.70,DCB (KENT) LIMITED,03532339                 ,PROPERTY SERVICES,Non-Planned Building Maintenance,Corporate & Democratic Core
Swale Borough Council,29UM,09/03/2016,1139216,47.00,DCB (KENT) LIMITED,03532339                 ,PROPERTY SERVICES,Non-Planned Building Maintenance,Corporate & Democratic Core
Swale Borough Council,29UM,09/03/2016,1139216,128.00,DCB (KENT) LIMITED,03532339                 ,PROPERTY SERVICES,Non-Planned Building Maintenance,Corporate & Democratic Core
Swale Borough Council,29UM,09/03/2016,1139216,76.45,DCB (KENT) LIMITED,03532339                 ,PROPERTY SERVICES,Non-Planned Building Maintenance,Corporate & Democratic Core
Swale Borough Council,29UM,09/03/2016,1139216,117.96,DCB (KENT) LIMITED,03532339                 ,PROPERTY SERVICES,Non-Planned Building Maintenance,Corporate & Democratic Core
Swale Borough Council,29UM,09/03/2016,1139216,137.52,DCB (KENT) LIMITED,03532339                 ,PROPERTY SERVICES,Non-Planned Building Maintenance,Corporate & Democratic Core
Swale Borough Council,29UM,09/03/2016,1139216,213.00,DCB (KENT) LIMITED,03532339                 ,PROPERTY SERVICES,Non-Planned Building Maintenance,Corporate & Democratic Core
Swale Borough Council,29UM,09/03/2016,1139216,127.86,DCB (KENT) LIMITED,03532339                 ,CONTRACT & PROCUREMENT,Non-Planned Building Maintenance,Environmental and Regulatory Services
Swale Borough Council,29UM,09/03/2016,1139216,116.70,DCB (KENT) LIMITED,03532339                 ,CONTRACT & PROCUREMENT,Non-Planned Building Maintenance,Environmental and Regulatory Services
Swale Borough Council,29UM,09/03/2016,1139216,907.46,DCB (KENT) LIMITED,03532339                 ,CONTRACT & PROCUREMENT,Non-Planned Building Maintenance,Environmental and Regulatory Services
Swale Borough Council,29UM,09/03/2016,1139216,114.03,DCB (KENT) LIMITED,03532339                 ,CONTRACT & PROCUREMENT,Non-Planned Building Maintenance,Environmental and Regulatory Services
Swale Borough Council,29UM,09/03/2016,1139216,66.57,DCB (KENT) LIMITED,03532339                 ,CONTRACT & PROCUREMENT,Non-Planned Building Maintenance,Environmental and Regulatory Services
Swale Borough Council,29UM,09/03/2016,1139216,131.96,DCB (KENT) LIMITED,03532339                 ,CONTRACT & PROCUREMENT,Non-Planned Building Maintenance,Environmental and Regulatory Services
Swale Borough Council,29UM,09/03/2016,1139216,413.99,DCB (KENT) LIMITED,03532339                 ,LEISURE & OPEN SPACES,Non-Planned Building Maintenance,Cultural and Related Services
Swale Borough Council,29UM,09/03/2016,1139216,128.00,DCB (KENT) LIMITED,03532339                 ,LEISURE & OPEN SPACES,Non-Planned Building Maintenance,Cultural and Related Services
Swale Borough Council,29UM,09/03/2016,1139216,30.91,DCB (KENT) LIMITED,03532339                 ,LEISURE & OPEN SPACES,Non-Planned Building Maintenance,Cultural and Related Services
Swale Borough Council,29UM,09/03/2016,1139216,135.73,DCB (KENT) LIMITED,03532339                 ,ECONOMY & COMMUNITIES,Non-Planned Building Maintenance,Cultural and Related Services
Swale Borough Council,29UM,09/03/2016,1139540,748.00,DISCLOSURE & BARRING SERVICE (DT),                         ,SERVICE DELIVERY,Fees And Services,Environmental and Regulatory Services
Swale Borough Council,29UM,09/03/2016,1139287,300.00,EASTCHURCH PARISH COUNCIL,                         ,COMMUNITY SAFETY,Grants & Subscriptions,Central Services to the Public
Swale Borough Council,29UM,09/03/2016,1139343,500.00,FAVERSHAM ASSISTANCE CENTRE (FACE),                         ,COMMUNITY SAFETY,Grants & Subscriptions,Central Services to the Public
Swale Borough Council,29UM,09/03/2016,1139367,300.00,FAVERSHAM FOODBANK,                         ,COMMUNITY SAFETY,Grants & Subscriptions,Central Services to the Public
Swale Borough Council,29UM,09/03/2016,1139459,1718.75,GRAHAM BOULDEN & COMPANY,                         ,CAR PARKS,Rent,Highway and Transport Services
Swale Borough Council,29UM,09/03/2016,1139134,8510.00,GRANT THORNTON UK LLP,                         ,HUMAN RESOURCES,Performance Fund Expenditure,Ledger/Suspense Codes
Swale Borough Council,29UM,09/03/2016,1139289,500.00,HI KENT,                         ,COMMUNITY SAFETY,Grants & Subscriptions,Central Services to the Public
Swale Borough Council,29UM,09/03/2016,1139395,400.00,HOSPITAL RADIO SWALE,                         ,COMMUNITY SAFETY,Grants & Subscriptions,Central Services to the Public
Swale Borough Council,29UM,09/03/2016,1139444,350.25,HOUND ENVELOPES LTD,4802560                  ,DEMOCRATIC & ELECTORAL SERVICES,Stationery,Central Services to the Public
Swale Borough Council,29UM,09/03/2016,1139678,6300.00,HUBBARD & HOUGHTON CONSTRUCTION LTD,                         ,HOUSING SERVICES,Housing Renovation Grants,Not used in this Structure
Swale Borough Council,29UM,09/03/2016,1139568,2120.00,INFORM CPI LTD,                         ,REVENUE SERVICES,NNDR Additional Rateable Values,Central Services to the Public
Swale Borough Council,29UM,09/03/2016,1139572,448.00,INFORM CPI LTD,                         ,REVENUE SERVICES,NNDR Additional Rateable Values,Central Services to the Public
Swale Borough Council,29UM,09/03/2016,1139573,-448.00,INFORM CPI LTD,                         ,REVENUE SERVICES,NNDR Additional Rateable Values,Central Services to the Public
Swale Borough Council,29UM,09/03/2016,1139290,400.00,ISLAND ALL STARS BATON TWIRLING ACADEMY,                         ,COMMUNITY SAFETY,Grants & Subscriptions,Central Services to the Public
Swale Borough Council,29UM,09/03/2016,1139411,500.00,IWADE AT THE BARN,                         ,COMMUNITY SAFETY,Grants & Subscriptions,Central Services to the Public
Swale Borough Council,29UM,09/03/2016,1139547,3650.00,J N CLEARANCE,                         ,CONTRACT & PROCUREMENT,"Clearance Of Waste,Fly Tipping",Environmental and Regulatory Services
Swale Borough Council,29UM,09/03/2016,1139443,417.00,KEEP BRITAIN TIDY,                         ,LEISURE & OPEN SPACES,Prizes/Awards,Cultural and Related Services
Swale Borough Council,29UM,09/03/2016,1139445,2355.00,KEEP BRITAIN TIDY,                         ,SERVICE DELIVERY,Prizes/Awards,Cultural and Related Services
Swale Borough Council,29UM,09/03/2016,1139217,12200.00,KENT COUNTY COUNCIL,                         ,FINANCIAL SERVICES,Payments in Year,Ledger/Suspense Codes
Swale Borough Council,29UM,09/03/2016,1139218,23600.00,KENT COUNTY COUNCIL,                         ,FINANCIAL SERVICES,Payments in Year,Ledger/Suspense Codes
Swale Borough Council,29UM,09/03/2016,1139483,1169.12,KENT COUNTY COUNCIL,                         ,SERVICE DELIVERY,Fees And Services,Highway and Transport Services
Swale Borough Council,29UM,09/03/2016,1139549,263.01,KENT COUNTY COUNCIL (KCS),                         ,REVENUE SERVICES,Computer Equipment & Materials,Housing
Swale Borough Council,29UM,09/03/2016,1139423,315.00,KENT MESSENGER LTD,505554                   ,COMMUNICATIONS,Advertising & Promotion,Internal Trading Cost Centres
Swale Borough Council,29UM,09/03/2016,1139381,16092.18,KGB CLEANING & SUPPORT SERVICES LTD,                         ,CONTRACT & PROCUREMENT,Private Contractors - CIS,Environmental and Regulatory Services
Swale Borough Council,29UM,09/03/2016,1139440,16092.18,KGB CLEANING & SUPPORT SERVICES LTD,                         ,CONTRACT & PROCUREMENT,Private Contractors,Environmental and Regulatory Services
Swale Borough Council,29UM,09/03/2016,1139716,40.00,LAND REGISTRY - (DT),                         ,LEISURE & OPEN SPACES,Fees - Land Registry,Environmental and Regulatory Services
Swale Borough Council,29UM,09/03/2016,1139716,12.00,LAND REGISTRY - (DT),                         ,PROPERTY SERVICES,Fees - Land Registry,Cultural and Related Services
Swale Borough Council,29UM,09/03/2016,1139716,12.00,LAND REGISTRY - (DT),                         ,PROPERTY SERVICES,Fees - Land Registry,Trading Undertaking
Swale Borough Council,29UM,09/03/2016,1139716,123.00,LAND REGISTRY - (DT),                         ,REVENUE SERVICES,Fees - Land Registry,Central Services to the Public
Swale Borough Council,29UM,09/03/2016,1139716,30.00,LAND REGISTRY - (DT),                         ,PLANNING SERVICES,Fees - Land Registry,Planning and Development Services
Swale Borough Council,29UM,09/03/2016,1139716,12.00,LAND REGISTRY - (DT),                         ,COMMUNITY SAFETY,Fees - Land Registry,Central Services to the Public
Swale Borough Council,29UM,09/03/2016,1139716,95.00,LAND REGISTRY - (DT),                         ,HOUSING SERVICES,Fees - Land Registry,Housing
Swale Borough Council,29UM,09/03/2016,1139716,3.00,LAND REGISTRY - (DT),                         ,HOUSING SERVICES,Fees - Land Registry,Housing
Swale Borough Council,29UM,09/03/2016,1139716,36.00,LAND REGISTRY - (DT),                         ,ENVIRONMENTAL RESPONSE TEAM,Fees - Land Registry,Internal Trading Cost Centres
Swale Borough Council,29UM,09/03/2016,1139716,6.00,LAND REGISTRY - (DT),                         ,LEISURE & OPEN SPACES,Fees - Land Registry,Internal Trading Cost Centres
Swale Borough Council,29UM,09/03/2016,1139716,4.00,LAND REGISTRY - (DT),                         ,PLANNING SERVICES,Fees - Land Registry,Internal Trading Cost Centres
Swale Borough Council,29UM,09/03/2016,1139716,6.00,LAND REGISTRY - (DT),                         ,FINANCIAL SERVICES,Regeneration Fund Expenditure,Ledger/Suspense Codes
Swale Borough Council,29UM,09/03/2016,1139716,60.00,LAND REGISTRY - (DT),                         ,LEISURE & OPEN SPACES,Fees - Land Registry,Cultural and Related Services
Swale Borough Council,29UM,09/03/2016,1139716,3.00,LAND REGISTRY - (DT),                         ,LEISURE & OPEN SPACES,Fees - Land Registry,Cultural and Related Services
Swale Borough Council,29UM,09/03/2016,1139716,12.00,LAND REGISTRY - (DT),                         ,HOUSING SERVICES,Fees - Land Registry,Housing
Swale Borough Council,29UM,09/03/2016,1139716,12.00,LAND REGISTRY - (DT),                         ,LEISURE & OPEN SPACES,Fees - Land Registry,Cultural and Related Services
Swale Borough Council,29UM,09/03/2016,1139716,21.00,LAND REGISTRY - (DT),                         ,HOUSING SERVICES,Fees - Land Registry,Housing
Swale Borough Council,29UM,09/03/2016,1139716,12.00,LAND REGISTRY - (DT),                         ,HOUSING SERVICES,Fees - Land Registry,Housing
Swale Borough Council,29UM,09/03/2016,1139518,330.00,LESSHOMELESS LIMITED,08458851                 ,HOUSING SERVICES,B & B - Landlords Payments,Housing
Swale Borough Council,29UM,09/03/2016,1138968,2750.79,LEX AUTOLEASE LTD,1090741                  ,HOUSING SERVICES,Payments in Year,Ledger/Suspense Codes
Swale Borough Council,29UM,09/03/2016,1138968,551.97,LEX AUTOLEASE LTD,1090741                  ,HOUSING SERVICES,Hire & Leases,Housing
Swale Borough Council,29UM,09/03/2016,1139541,1200.00,LEYSDOWN VILLAGE HALL COMMITTEE,                         ,COMMUNITY SAFETY,Grants & Subscriptions,Central Services to the Public
Swale Borough Council,29UM,09/03/2016,1139345,500.00,LITTER ANGELS,                         ,COMMUNITY SAFETY,Grants & Subscriptions,Central Services to the Public
Swale Borough Council,29UM,09/03/2016,1139539,400.00,LOWER HALSTOW PC,                         ,COMMUNITY SAFETY,Grants & Subscriptions,Central Services to the Public
Swale Borough Council,29UM,09/03/2016,1139373,1260.00,LUSHLAND,4289261                  ,PLANNING SERVICES,Fees And Services,Planning and Development Services
Swale Borough Council,29UM,09/03/2016,1139398,1764.00,MACDONALD & COMPANY FREELANCE LTD,3882135                  ,PLANNING SERVICES,Agency/Contract Staff,Internal Trading Cost Centres
Swale Borough Council,29UM,09/03/2016,1139399,4992.00,MACDONALD & COMPANY FREELANCE LTD,3882135                  ,PLANNING SERVICES,Agency/Contract Staff,Internal Trading Cost Centres
Swale Borough Council,29UM,09/03/2016,1138490,2440.00,MAGEES GUESTHOUSE,                         ,HOUSING SERVICES,B & B - Landlords Payments,Housing
Swale Borough Council,29UM,09/03/2016,1138627,2920.00,MAGEES GUESTHOUSE,                         ,HOUSING SERVICES,B & B - Landlords Payments,Housing
Swale Borough Council,29UM,09/03/2016,1138949,2345.00,MAGEES GUESTHOUSE,                         ,HOUSING SERVICES,B & B - Landlords Payments,Housing
Swale Borough Council,29UM,09/03/2016,1139096,2590.00,MAGEES GUESTHOUSE,                         ,HOUSING SERVICES,B & B - Landlords Payments,Housing
Swale Borough Council,29UM,09/03/2016,1139234,3140.00,MAGEES GUESTHOUSE,                         ,HOUSING SERVICES,B & B - Landlords Payments,Housing
Swale Borough Council,29UM,09/03/2016,1139529,2605.00,MAGEES GUESTHOUSE,                         ,HOUSING SERVICES,B & B - Landlords Payments,Housing
Swale Borough Council,29UM,09/03/2016,1139232,71335.88,MAIDSTONE BOROUGH COUNCIL,                         ,CONTRACT & PROCUREMENT,Private Contractors,Environmental and Regulatory Services
Swale Borough Council,29UM,09/03/2016,1139232,189810.02,MAIDSTONE BOROUGH COUNCIL,                         ,CONTRACT & PROCUREMENT,Private Contractors,Environmental and Regulatory Services
Swale Borough Council,29UM,09/03/2016,1139279,1578.00,MIDLAND SOFTWARE LTD,1852206                  ,HUMAN RESOURCES,Computer Equipment & Materials,Internal Trading Cost Centres
Swale Borough Council,29UM,09/03/2016,1139047,4020.00,MIDLANDS SIGNS LEICESTER LTD,1778323                  ,SERVICE DELIVERY,Private Contractors - CIS,Highway and Transport Services
Swale Borough Council,29UM,09/03/2016,1139296,600.00,MINSTER COMMUNITY CENTRE,                         ,COMMUNITY SAFETY,Grants & Subscriptions,Central Services to the Public
Swale Borough Council,29UM,09/03/2016,1139562,400.00,REDACTED PERSONAL INFORMATION,                         ,ENVIRONMENTAL RESPONSE TEAM,Legal Fees,Internal Trading Cost Centres
Swale Borough Council,29UM,09/03/2016,1139562,80.00,REDACTED PERSONAL INFORMATION,                         ,ENVIRONMENTAL RESPONSE TEAM,Legal Fees,Internal Trading Cost Centres
Swale Borough Council,29UM,09/03/2016,1139344,300.00,NEWNHAM PARISH COUNCIL,                         ,COMMUNITY SAFETY,Grants & Subscriptions,Central Services to the Public
Swale Borough Council,29UM,09/03/2016,1139455,500.00,NEWNHAM PARISH COUNCIL,                         ,COMMUNITY SAFETY,Grants & Subscriptions,Central Services to the Public
Swale Borough Council,29UM,09/03/2016,1139388,500.00,NEWNHAM VILLAGE HALL COMMITTEE,                         ,COMMUNITY SAFETY,Grants & Subscriptions,Central Services to the Public
Swale Borough Council,29UM,09/03/2016,1139213,695.97,NPOWER,3432100                  ,COMMUNITY SAFETY,Electricity,Cultural and Related Services
Swale Borough Council,29UM,09/03/2016,1138917,954.79,O2 (UK) LTD,1743099                  ,ICT,Telephone,Corporate & Democratic Core
Swale Borough Council,29UM,09/03/2016,1138917,5.34,O2 (UK) LTD,1743099                  ,ICT,Telephone,Corporate & Democratic Core
Swale Borough Council,29UM,09/03/2016,1139359,300.00,OASIS ACADEMY ISLE OF SHEPPEY,                         ,COMMUNITY SAFETY,Grants & Subscriptions,Central Services to the Public
Swale Borough Council,29UM,09/03/2016,1139462,500.00,OASIS ACADEMY ISLE OF SHEPPEY,                         ,COMMUNITY SAFETY,Grants & Subscriptions,Central Services to the Public
Swale Borough Council,29UM,09/03/2016,1139403,290.33,PORTAKABIN LIMITED,685303                   ,LEISURE & OPEN SPACES,Maintenance - Grounds,Environmental and Regulatory Services
Swale Borough Council,29UM,09/03/2016,1139682,687.14,PRECEPT CS LIMITED,07311462                 ,HOUSING SERVICES,Housing Renovation Grants,Not used in this Structure
Swale Borough Council,29UM,09/03/2016,1139683,4549.50,PRECEPT CS LIMITED,07311462                 ,HOUSING SERVICES,Housing Renovation Grants,Not used in this Structure
Swale Borough Council,29UM,09/03/2016,1139466,431.97,PRIMESIGHT,1847728                  ,COMMUNICATIONS,Advertising & Promotion,Internal Trading Cost Centres
Swale Borough Council,29UM,09/03/2016,1139442,3750.00,QUEENBOROUGH FISHERY TRUST,                         ,PROPERTY SERVICES,Rent,Corporate & Democratic Core
Swale Borough Council,29UM,09/03/2016,1139419,3478.00,RP AUSTIN,                         ,MKIP LEGAL SERVICES,Agency/Contract Staff,Internal Trading Cost Centres
Swale Borough Council,29UM,09/03/2016,1139566,688.40,RSP RAIL TRAVEL ACCOUNT - (DT),                         ,FINANCIAL SERVICES,Travel Warrants (Staff Travel),Internal Trading Cost Centres
Swale Borough Council,29UM,09/03/2016,1139460,375.00,RURAL PLANNING LTD,4426249                  ,PLANNING SERVICES,Fees And Services,Planning and Development Services
Swale Borough Council,29UM,09/03/2016,1139369,3000.00,SATEDA,                         ,COMMUNITY SAFETY,Grants & Subscriptions,Planning and Development Services
Swale Borough Council,29UM,09/03/2016,1139416,5553.35,SHARP BUSINESS SYSTEMS UK,2136901                  ,ICT,Equipment Rental,Holding Codes
Swale Borough Council,29UM,09/03/2016,1139295,300.00,SHEPPEY RUGBY FOOTBALL CLUB LTD,                         ,COMMUNITY SAFETY,Grants & Subscriptions,Central Services to the Public
Swale Borough Council,29UM,09/03/2016,1139402,400.00,SHEPPY GLASS CENTRE LTD,                         ,CONTRACT & PROCUREMENT,Non-Planned Building Maintenance,Environmental and Regulatory Services
Swale Borough Council,29UM,09/03/2016,1139456,650.00,SITT. & KEMSLEY LIGHT RAILWAY LTD,                         ,COMMUNITY SAFETY,Grants & Subscriptions,Central Services to the Public
Swale Borough Council,29UM,09/03/2016,1139285,600.00,SITTINGBOURNE CHRISTMAS LIGHTS ASSOCIATION,                         ,COMMUNITY SAFETY,Grants & Subscriptions,Central Services to the Public
Swale Borough Council,29UM,09/03/2016,1139288,420.00,SITTINGBOURNE HERITAGE MUSEUM,                         ,COMMUNITY SAFETY,Grants & Subscriptions,Central Services to the Public
Swale Borough Council,29UM,09/03/2016,1139681,794.14,SOUTH EAST BUILDING CO LTD,1786838                  ,HOUSING SERVICES,Housing Renovation Grants,Not used in this Structure
Swale Borough Council,29UM,09/03/2016,1139648,3020.05,SOUTHERN COMMUNICATIONS LTD,1328040                  ,ICT,Telephone,Corporate & Democratic Core
Swale Borough Council,29UM,09/03/2016,1139309,1845.33,SOUTHERN WATER SERVICES LIMITED,2366670                  ,CONTRACT & PROCUREMENT,Water - Metered,Environmental and Regulatory Services
Swale Borough Council,29UM,09/03/2016,1139326,373.85,SOUTHERN WATER SERVICES LIMITED,2366670                  ,CONTRACT & PROCUREMENT,Water - Metered,Environmental and Regulatory Services
Swale Borough Council,29UM,09/03/2016,1139401,1186.97,SOUTHERN WATER SERVICES LIMITED,2366670                  ,CONTRACT & PROCUREMENT,Water - Metered,Environmental and Regulatory Services
Swale Borough Council,29UM,09/03/2016,1139294,500.00,SWAMPYS ANIMAL RESCUE,                         ,COMMUNITY SAFETY,Grants & Subscriptions,Central Services to the Public
Swale Borough Council,29UM,09/03/2016,1139453,380.00,THE BROADWAY CHOIR,                         ,COMMUNITY SAFETY,Grants & Subscriptions,Central Services to the Public
Swale Borough Council,29UM,09/03/2016,1139375,490.88,THE HELPING HAND COMPANY LTD,2172956                  ,CONTRACT & PROCUREMENT,Equipment Purchase,Environmental and Regulatory Services
Swale Borough Council,29UM,09/03/2016,1139214,1311.00,THE OYSTER PARTNERSHIP,05020374                 ,PLANNING SERVICES,Agency/Contract Staff,Internal Trading Cost Centres
Swale Borough Council,29UM,09/03/2016,1139215,1282.50,THE OYSTER PARTNERSHIP,05020374                 ,PLANNING SERVICES,Agency/Contract Staff,Internal Trading Cost Centres
Swale Borough Council,29UM,09/03/2016,1139404,1292.00,THE OYSTER PARTNERSHIP,05020374                 ,PLANNING SERVICES,Agency/Contract Staff,Internal Trading Cost Centres
Swale Borough Council,29UM,09/03/2016,1139452,500.00,TUNSTALL PARISH COUNCIL,                         ,COMMUNITY SAFETY,Grants & Subscriptions,Central Services to the Public
Swale Borough Council,29UM,09/03/2016,1139454,500.00,UPCHURCH ACTIVE RETIREMENT ASSOCIATION,                         ,TOURISM & SPORTS DEVELOPMENT,Grants & Subscriptions,Cultural and Related Services
Swale Borough Council,29UM,09/03/2016,1139545,1230.00,VENN GROUP LIMITED,                         ,MKIP LEGAL SERVICES,Agency/Contract Staff,Internal Trading Cost Centres
Swale Borough Council,29UM,09/03/2016,1139305,325.93,WATKISS AUTOMATION SALES LTD,                         ,PROPERTY SERVICES,Equipment Maintenance,Internal Trading Cost Centres
Swale Borough Council,29UM,09/03/2016,1139154,1241.77,WHISTL LONDON LTD,06493826                 ,REVENUE SERVICES,Postage,Central Services to the Public
Swale Borough Council,29UM,09/03/2016,1139154,620.90,WHISTL LONDON LTD,06493826                 ,REVENUE SERVICES,Postage,Housing
Swale Borough Council,29UM,09/03/2016,1139154,505.20,WHISTL LONDON LTD,06493826                 ,PROPERTY SERVICES,Postage,Holding Codes
Swale Borough Council,29UM,09/03/2016,1139284,597.13,WHISTL LONDON LTD,06493826                 ,REVENUE SERVICES,Postage,Central Services to the Public
Swale Borough Council,29UM,09/03/2016,1139284,298.57,WHISTL LONDON LTD,06493826                 ,REVENUE SERVICES,Postage,Housing
Swale Borough Council,29UM,09/03/2016,1139284,268.13,WHISTL LONDON LTD,06493826                 ,PROPERTY SERVICES,Postage,Holding Codes
Swale Borough Council,29UM,09/03/2016,1139522,577.75,WHISTL LONDON LTD,06493826                 ,REVENUE SERVICES,Postage,Central Services to the Public
Swale Borough Council,29UM,09/03/2016,1139522,288.87,WHISTL LONDON LTD,06493826                 ,REVENUE SERVICES,Postage,Housing
Swale Borough Council,29UM,09/03/2016,1139522,371.03,WHISTL LONDON LTD,06493826                 ,PROPERTY SERVICES,Postage,Holding Codes
Swale Borough Council,29UM,09/03/2016,1139412,887.00,WILLOW TREE HOME SOLUTIONS LTD,                         ,HOUSING SERVICES,Staying Put small repairs (contractors),Housing
Swale Borough Council,29UM,16/03/2016,1139686,500.00,ABBEY CAPERS,                         ,COMMUNITY SAFETY,Grants & Subscriptions,Central Services to the Public
Swale Borough Council,29UM,16/03/2016,1139622,500.00,ACORN MAINTENANCE SERVICES,3546898                  ,HOUSING SERVICES,Staying Put small repairs (contractors),Housing
Swale Borough Council,29UM,16/03/2016,1139757,400.00,ADHD SHEPPEY,                         ,COMMUNITY SAFETY,Grants & Subscriptions,Central Services to the Public
Swale Borough Council,29UM,16/03/2016,1139322,29.58,ALLSTAR BUSINESS SOLUTIONS LTD - (DT),1073098                  ,DEMOCRATIC & ELECTORAL SERVICES,Petrol/Derv & Oil,Corporate & Democratic Core
Swale Borough Council,29UM,16/03/2016,1139322,48.33,ALLSTAR BUSINESS SOLUTIONS LTD - (DT),1073098                  ,SERVICE DELIVERY,Petrol/Derv & Oil,Cultural and Related Services
Swale Borough Council,29UM,16/03/2016,1139322,102.84,ALLSTAR BUSINESS SOLUTIONS LTD - (DT),1073098                  ,ENVIRONMENTAL RESPONSE TEAM,Fuel For Contract Vehicles,Internal Trading Cost Centres
Swale Borough Council,29UM,16/03/2016,1139322,54.54,ALLSTAR BUSINESS SOLUTIONS LTD - (DT),1073098                  ,LEISURE & OPEN SPACES,Fuel For Contract Vehicles,Cultural and Related Services
Swale Borough Council,29UM,16/03/2016,1139322,38.95,ALLSTAR BUSINESS SOLUTIONS LTD - (DT),1073098                  ,ENVIRONMENTAL RESPONSE TEAM,Fuel For Contract Vehicles,Environmental and Regulatory Services
Swale Borough Council,29UM,16/03/2016,1139322,61.76,ALLSTAR BUSINESS SOLUTIONS LTD - (DT),1073098                  ,HOUSING SERVICES,Fuel For Contract Vehicles,Housing
Swale Borough Council,29UM,16/03/2016,1139426,12856.01,APCOA PARKING (UK) LTD,2572947                  ,CAR PARKS,Private Contractors,Highway and Transport Services
Swale Borough Council,29UM,16/03/2016,1139426,19284.01,APCOA PARKING (UK) LTD,2572947                  ,CAR PARKS,Private Contractors,Highway and Transport Services
Swale Borough Council,29UM,16/03/2016,1139387,440.00,ASHFORD BOROUGH COUNCIL,                         ,FINANCIAL SERVICES,Fees And Services,Internal Trading Cost Centres
Swale Borough Council,29UM,16/03/2016,1139636,1095.00,AYS LTD,                         ,CAR PARKS,Maintenance - Grounds,Highway and Transport Services
Swale Borough Council,29UM,16/03/2016,1139768,1875.35,BBM SUSTAINABLE DESIGN LTD,4597504                  ,COMMUNITY SAFETY,Capitalised Fees And Charges,Not used in this Structure
Swale Borough Council,29UM,16/03/2016,1139669,1000.00,BENSTEDS CHARITY WAR MEMORIAL FUND,                         ,COMMUNITY SAFETY,Grants & Subscriptions,Central Services to the Public
Swale Borough Council,29UM,16/03/2016,1139414,7203.19,BLENWOOD LTD,4383277                  ,LEISURE & OPEN SPACES,Capitalised Fees And Charges,Not used in this Structure
Swale Borough Council,29UM,16/03/2016,1139436,4381.42,BLENWOOD LTD,4383277                  ,LEISURE & OPEN SPACES,Grounds Maint Suspense,Cultural and Related Services
Swale Borough Council,29UM,16/03/2016,1139437,101778.20,BLENWOOD LTD,4383277                  ,LEISURE & OPEN SPACES,Grounds Maint Suspense,Cultural and Related Services
Swale Borough Council,29UM,16/03/2016,1139439,1168.74,BLENWOOD LTD,4383277                  ,LEISURE & OPEN SPACES,Grounds Maint Suspense,Cultural and Related Services
Swale Borough Council,29UM,16/03/2016,1139523,101778.20,BLENWOOD LTD,4383277                  ,LEISURE & OPEN SPACES,Grounds Maint Suspense,Cultural and Related Services
Swale Borough Council,29UM,16/03/2016,1139524,4381.42,BLENWOOD LTD,4383277                  ,LEISURE & OPEN SPACES,Grounds Maint Suspense,Cultural and Related Services
Swale Borough Council,29UM,16/03/2016,1139535,786.30,BLENWOOD LTD,4383277                  ,LEISURE & OPEN SPACES,Maintenance - Grounds Contract,Cultural and Related Services
Swale Borough Council,29UM,16/03/2016,1139791,-471.92,BLENWOOD LTD,4383277                  ,LEISURE & OPEN SPACES,Maintenance - Grounds,Environmental and Regulatory Services
Swale Borough Council,29UM,16/03/2016,1139791,-648.97,BLENWOOD LTD,4383277                  ,LEISURE & OPEN SPACES,Maintenance - Grounds,Cultural and Related Services
Swale Borough Council,29UM,16/03/2016,1139791,-938.78,BLENWOOD LTD,4383277                  ,LEISURE & OPEN SPACES,Swale In Bloom,Cultural and Related Services
Swale Borough Council,29UM,16/03/2016,1139791,-1388.71,BLENWOOD LTD,4383277                  ,LEISURE & OPEN SPACES,Grounds Contract Variations,Cultural and Related Services
Swale Borough Council,29UM,16/03/2016,1139792,471.92,BLENWOOD LTD,4383277                  ,LEISURE & OPEN SPACES,Maintenance - Grounds,Environmental and Regulatory Services
Swale Borough Council,29UM,16/03/2016,1139792,648.97,BLENWOOD LTD,4383277                  ,LEISURE & OPEN SPACES,Maintenance - Grounds,Cultural and Related Services
Swale Borough Council,29UM,16/03/2016,1139792,938.78,BLENWOOD LTD,4383277                  ,LEISURE & OPEN SPACES,Swale In Bloom,Cultural and Related Services
Swale Borough Council,29UM,16/03/2016,1139792,1388.71,BLENWOOD LTD,4383277                  ,LEISURE & OPEN SPACES,Grounds Contract Variations,Cultural and Related Services
Swale Borough Council,29UM,16/03/2016,1139237,280.74,C.E.F. (SOUTH EAST DIVISION),                         ,PROPERTY SERVICES,Buildings Maintenance,Corporate & Democratic Core
Swale Borough Council,29UM,16/03/2016,1139761,5082.80,CAMBRIDGE DIRECT TREE SEEDING LTD,4990081                  ,COMMUNITY SAFETY,Capitalised Fees And Charges,Not used in this Structure
Swale Borough Council,29UM,16/03/2016,1139765,5000.00,CANTERBURY CITY COUNCIL,                         ,SERVICE DELIVERY,Private Contractors - CIS,Environmental and Regulatory Services
Swale Borough Council,29UM,16/03/2016,1139685,5076.04,CAPITA BUSINESS SERVICES LTD,                         ,REVENUE SERVICES,Fees And Services,Housing
Swale Borough Council,29UM,16/03/2016,1139688,647.64,COMENSURA LTD,04085767                 ,HOUSING SERVICES,Agency/Contract Staff,Housing
Swale Borough Council,29UM,16/03/2016,1139688,1693.50,COMENSURA LTD,04085767                 ,MKIP LEGAL SERVICES,Agency/Contract Staff,Internal Trading Cost Centres
Swale Borough Council,29UM,16/03/2016,1139688,240.72,COMENSURA LTD,04085767                 ,HOUSING SERVICES,Agency/Contract Staff,Housing
Swale Borough Council,29UM,16/03/2016,1139589,275.76,DHA PLANNING,2683290                  ,PLANNING SERVICES,Fees And Services,Internal Trading Cost Centres
Swale Borough Council,29UM,16/03/2016,1139590,546.12,DHA PLANNING,2683290                  ,PLANNING SERVICES,Fees And Services,Internal Trading Cost Centres
Swale Borough Council,29UM,16/03/2016,1139591,1170.96,DHA PLANNING,2683290                  ,PLANNING SERVICES,Fees And Services,Internal Trading Cost Centres
Swale Borough Council,29UM,16/03/2016,1139592,1553.20,DHA PLANNING,2683290                  ,PLANNING SERVICES,Fees And Services,Internal Trading Cost Centres
Swale Borough Council,29UM,16/03/2016,1139593,1107.86,DHA PLANNING,2683290                  ,PLANNING SERVICES,Fees And Services,Internal Trading Cost Centres
Swale Borough Council,29UM,16/03/2016,1139594,1449.63,DHA PLANNING,2683290                  ,PLANNING SERVICES,Fees And Services,Internal Trading Cost Centres
Swale Borough Council,29UM,16/03/2016,1139595,2287.60,DHA PLANNING,2683290                  ,PLANNING SERVICES,Fees And Services,Internal Trading Cost Centres
Swale Borough Council,29UM,16/03/2016,1139596,1789.12,DHA PLANNING,2683290                  ,PLANNING SERVICES,Fees And Services,Internal Trading Cost Centres
Swale Borough Council,29UM,16/03/2016,1139597,660.60,DHA PLANNING,2683290                  ,PLANNING SERVICES,Fees And Services,Internal Trading Cost Centres
Swale Borough Council,29UM,16/03/2016,1139598,1925.61,DHA PLANNING,2683290                  ,PLANNING SERVICES,Fees And Services,Internal Trading Cost Centres
Swale Borough Council,29UM,16/03/2016,1139599,916.22,DHA PLANNING,2683290                  ,PLANNING SERVICES,Fees And Services,Internal Trading Cost Centres
Swale Borough Council,29UM,16/03/2016,1139600,460.10,DHA PLANNING,2683290                  ,PLANNING SERVICES,Fees And Services,Internal Trading Cost Centres
Swale Borough Council,29UM,16/03/2016,1139601,458.76,DHA PLANNING,2683290                  ,PLANNING SERVICES,Fees And Services,Internal Trading Cost Centres
Swale Borough Council,29UM,16/03/2016,1139602,964.82,DHA PLANNING,2683290                  ,PLANNING SERVICES,Fees And Services,Internal Trading Cost Centres
Swale Borough Council,29UM,16/03/2016,1139521,210.00,DRS DOORS LTD,07551854                 ,PROPERTY SERVICES,Non-Planned Building Maintenance,Corporate & Democratic Core
Swale Borough Council,29UM,16/03/2016,1139521,250.50,DRS DOORS LTD,07551854                 ,PROPERTY SERVICES,Non-Planned Building Maintenance,Corporate & Democratic Core
Swale Borough Council,29UM,16/03/2016,1139788,42500.00,"DTZ CLIENT AC TESCO STORES, THE FORUM (RENT)",                         ,CAR PARKS,Rent,Highway and Transport Services
Swale Borough Council,29UM,16/03/2016,1139788,8500.00,"DTZ CLIENT AC TESCO STORES, THE FORUM (RENT)",                         ,CAR PARKS,Rent,Highway and Transport Services
Swale Borough Council,29UM,16/03/2016,1139557,361.61,EDF ENERGY,2228297                  ,MKIP ENVIRONMENTAL SERVICES,Electricity,Internal Trading Cost Centres
Swale Borough Council,29UM,16/03/2016,1139666,1700.00,EVENT MARSHALLING UNIT,                         ,COMMUNITY SAFETY,Grants & Subscriptions,Central Services to the Public
Swale Borough Council,29UM,16/03/2016,1139664,750.00,FAVERSHAM TOWN COUNCIL,                         ,TOURISM & SPORTS DEVELOPMENT,Grants & Subscriptions,Cultural and Related Services
Swale Borough Council,29UM,16/03/2016,1139754,707.08,GRAHAMS AUTO REPAIRS,04766184                 ,DEMOCRATIC & ELECTORAL SERVICES,Repair And Maintenance,Corporate & Democratic Core
Swale Borough Council,29UM,16/03/2016,1138944,470.33,HEMPSTEAD HOUSE,                         ,CHIEF EXECUTIVE,Catering Provisions,Internal Trading Cost Centres
Swale Borough Council,29UM,16/03/2016,1139631,1650.00,INTEGRA ASSOCIATES LIMITED,03054901                 ,FINANCIAL SERVICES,Capitalised Fees And Charges,Not used in this Structure
Swale Borough Council,29UM,16/03/2016,1139434,633.13,JASMIL KENNELS,05595524                 ,ENVIRONMENTAL RESPONSE TEAM,Kennelling Of Dogs,Environmental and Regulatory Services
Swale Borough Council,29UM,16/03/2016,1139434,-135.00,JASMIL KENNELS,05595524                 ,ENVIRONMENTAL RESPONSE TEAM,Income collected by Dog Kennels,Environmental and Regulatory Services
Swale Borough Council,29UM,16/03/2016,1139831,5103.00,JCBS BUILDING SERVICES,                         ,HOUSING SERVICES,Housing Renovation Grants,Not used in this Structure
Swale Borough Council,29UM,16/03/2016,1139663,4398.49,KENT COUNTY COUNCIL (KCS),                         ,PROPERTY SERVICES,Electricity,Corporate & Democratic Core
Swale Borough Council,29UM,16/03/2016,1139745,3811.83,KENT COUNTY COUNCIL (KCS),                         ,PROPERTY SERVICES,Gas,Corporate & Democratic Core
Swale Borough Council,29UM,16/03/2016,1139759,1280.00,LAYFIELD UTILITIES LTD,09102559                 ,LEISURE & OPEN SPACES,Maintenance - Grounds,Environmental and Regulatory Services
Swale Borough Council,29UM,16/03/2016,1139672,850.00,LEE EVANS PARTNERSHIP,                         ,COMMUNITY SAFETY,Capitalised Fees And Charges,Not used in this Structure
Swale Borough Council,29UM,16/03/2016,1139672,170.00,LEE EVANS PARTNERSHIP,                         ,COMMUNITY SAFETY,Capitalised Fees And Charges,Not used in this Structure
Swale Borough Council,29UM,16/03/2016,1139643,300.00,LEMAR LIMITED,04350292                 ,CAR PARKS,Maintenance - Grounds,Highway and Transport Services
Swale Borough Council,29UM,16/03/2016,1139643,245.00,LEMAR LIMITED,04350292                 ,CAR PARKS,Maintenance - Grounds,Highway and Transport Services
Swale Borough Council,29UM,16/03/2016,1139586,632.00,LIBERTY PRINTERS LTD,2920033                  ,CAR PARKS,Printing - External,Highway and Transport Services
Swale Borough Council,29UM,16/03/2016,1139587,1896.00,LIBERTY PRINTERS LTD,2920033                  ,CAR PARKS,Printing - External,Highway and Transport Services
Swale Borough Council,29UM,16/03/2016,1139782,3308.40,LUBBE & SONS (BULBS) LTD,836902                   ,LEISURE & OPEN SPACES,Nursery Stock,Cultural and Related Services
Swale Borough Council,29UM,16/03/2016,1139783,400.00,LUBBE & SONS (BULBS) LTD,836902                   ,LEISURE & OPEN SPACES,Nursery Stock,Cultural and Related Services
Swale Borough Council,29UM,16/03/2016,1139477,387.16,LYRECO UK LTD,                         ,PROPERTY SERVICES,Paper,Internal Trading Cost Centres
Swale Borough Council,29UM,16/03/2016,1139640,1776.00,MACDONALD & COMPANY FREELANCE LTD,3882135                  ,PLANNING SERVICES,Agency/Contract Staff,Internal Trading Cost Centres
Swale Borough Council,29UM,16/03/2016,1139779,26183.12,MAIDSTONE BOROUGH COUNCIL,                         ,ICT,Computer Equipment & Materials,Internal Trading Cost Centres
Swale Borough Council,29UM,16/03/2016,1139629,1704.00,MAYLOW CONSTRUCTION LTD,                         ,LEISURE & OPEN SPACES,Equipment Maintenance,Cultural and Related Services
Swale Borough Council,29UM,16/03/2016,1139630,1786.00,MAYLOW CONSTRUCTION LTD,                         ,LEISURE & OPEN SPACES,Equipment Maintenance,Cultural and Related Services
Swale Borough Council,29UM,16/03/2016,1139657,364.00,MAYLOW CONSTRUCTION LTD,                         ,LEISURE & OPEN SPACES,Maintenance - Grounds,Environmental and Regulatory Services
Swale Borough Council,29UM,16/03/2016,1139377,625.00,MLM CONSULTING ENGINEERS LTD,3057104                  ,COMMUNITY SAFETY,Capitalised Fees And Charges,Not used in this Structure
Swale Borough Council,29UM,16/03/2016,1139673,475.00,REDACTED PERSONAL INFORMATION,                         ,ENVIRONMENTAL RESPONSE TEAM,Legal Fees,Internal Trading Cost Centres
Swale Borough Council,29UM,16/03/2016,1139673,95.00,REDACTED PERSONAL INFORMATION,                         ,ENVIRONMENTAL RESPONSE TEAM,Legal Fees,Internal Trading Cost Centres
Swale Borough Council,29UM,16/03/2016,1139748,250.00,REDACTED PERSONAL INFORMATION,                         ,ENVIRONMENTAL RESPONSE TEAM,Legal Fees,Internal Trading Cost Centres
Swale Borough Council,29UM,16/03/2016,1139748,50.00,REDACTED PERSONAL INFORMATION,                         ,ENVIRONMENTAL RESPONSE TEAM,Legal Fees,Internal Trading Cost Centres
Swale Borough Council,29UM,16/03/2016,1139588,577.99,MR J W GATES,                         ,LEISURE & OPEN SPACES,Maintenance - Grounds,Cultural and Related Services
Swale Borough Council,29UM,16/03/2016,1139646,975.00,REDACTED PERSONAL INFORMATION,                         ,LEISURE & OPEN SPACES,Maintenance - Grounds,Cultural and Related Services
Swale Borough Council,29UM,16/03/2016,1139667,950.00,MURSTON COMMUNITY HUB AND COMMUNITY BANK,                         ,COMMUNITY SAFETY,Grants & Subscriptions,Central Services to the Public
Swale Borough Council,29UM,16/03/2016,1136449,46834.00,NETCALL TELECOM LTD,02831215                 ,COMMISSIONING & CUSTOMER CONTACT,Computer Equipment & Materials,Internal Trading Cost Centres
Swale Borough Council,29UM,16/03/2016,1136449,2745.00,NETCALL TELECOM LTD,02831215                 ,COMMISSIONING & CUSTOMER CONTACT,Computer Equipment & Materials,Internal Trading Cost Centres
Swale Borough Council,29UM,16/03/2016,1139668,500.00,NEWNHAM PARISH COUNCIL,                         ,COMMUNITY SAFETY,Grants & Subscriptions,Central Services to the Public
Swale Borough Council,29UM,16/03/2016,1139861,6629.25,NICHOLAS HARRISON (DT),                         ,REVENUE SERVICES,Payments in Year,Ledger/Suspense Codes
Swale Borough Council,29UM,16/03/2016,1139786,1350.00,NORMAN BROMLEY PARTNERSHIP LLP,                         ,COMMUNITY SAFETY,Capitalised Fees And Charges,Not used in this Structure
Swale Borough Council,29UM,16/03/2016,1139633,254.60,O2 (UK) LTD,1743099                  ,ENVIRONMENTAL RESPONSE TEAM,Cellphone,Internal Trading Cost Centres
Swale Borough Council,29UM,16/03/2016,1139692,470.00,OBSIDIAN SECURITY LTD.,                         ,PROPERTY SERVICES,Non-Planned Building Maintenance,Corporate & Democratic Core
Swale Borough Council,29UM,16/03/2016,1139816,312.03,OBSIDIAN SECURITY LTD.,                         ,PROPERTY SERVICES,Non-Planned Building Maintenance,Corporate & Democratic Core
Swale Borough Council,29UM,16/03/2016,1139603,25.76,P&MM LTD,1090180                  ,HUMAN RESOURCES,Fees And Services,Corporate & Democratic Core
Swale Borough Council,29UM,16/03/2016,1139760,800.00,PICTORIAL MEADOWS LIMITED,                         ,LEISURE & OPEN SPACES,Nursery Stock,Cultural and Related Services
Swale Borough Council,29UM,16/03/2016,1139785,2440.00,POCKET COMMS LTD,5731383                  ,COMMUNITY SAFETY,Fees And Services,Planning and Development Services
Swale Borough Council,29UM,16/03/2016,1139751,1050.00,PORT OF SHEERNESS WINDFARM LIMITED,                         ,FINANCIAL SERVICES,Awaiting Allocation,Ledger/Suspense Codes
Swale Borough Council,29UM,16/03/2016,1139803,5200.00,POSTAGE BY PHONE-PITNEY BOWES LTD DT,                         ,PROPERTY SERVICES,Postage - Franking Machine,Holding Codes
Swale Borough Council,29UM,16/03/2016,1139803,5.00,POSTAGE BY PHONE-PITNEY BOWES LTD DT,                         ,PROPERTY SERVICES,Postage - Franking Machine,Holding Codes
Swale Borough Council,29UM,16/03/2016,1139564,1179.23,QTECH APPLICATIONS LTD,                         ,HOUSING SERVICES,Payments in Year,Ledger/Suspense Codes
Swale Borough Council,29UM,16/03/2016,1139742,360.00,RIPPLEEFFECT,                         ,TOURISM & SPORTS DEVELOPMENT,Grants & Subscriptions,Cultural and Related Services
Swale Borough Council,29UM,16/03/2016,1139604,435.00,ROSPA,3021397                  ,PROPERTY SERVICES,Payments in Year,Ledger/Suspense Codes
Swale Borough Council,29UM,16/03/2016,1139583,5779.04,SCHOFIELD LOTHIAN LTD,6717705                  ,PLANNING SERVICES,Fees And Services,Internal Trading Cost Centres
Swale Borough Council,29UM,16/03/2016,1139723,3840.02,SCHOFIELD LOTHIAN LTD,6717705                  ,PLANNING SERVICES,Fees And Services,Internal Trading Cost Centres
Swale Borough Council,29UM,16/03/2016,1139770,623.50,SHAW AND SONS LTD,                         ,DEMOCRATIC & ELECTORAL SERVICES,Stationery,Ledger/Suspense Codes
Swale Borough Council,29UM,16/03/2016,1139670,300.00,SITTINGBOURNE HERITAGE MUSEUM,                         ,COMMUNITY SAFETY,Grants & Subscriptions,Central Services to the Public
Swale Borough Council,29UM,16/03/2016,1139771,337.50,SUTTONS SEEDS,284448                   ,LEISURE & OPEN SPACES,Swale In Bloom,Cultural and Related Services
Swale Borough Council,29UM,16/03/2016,1139659,7500.00,SWALE VOLUNTEER CENTRE,277523                   ,COMMUNITY SAFETY,Voluntary Organisations Grants,Central Services to the Public
Swale Borough Council,29UM,16/03/2016,1139860,300.00,SWALE YOUNG PEOPLE CIC,                         ,COMMUNITY SAFETY,Grants & Subscriptions,Central Services to the Public
Swale Borough Council,29UM,16/03/2016,1139554,1000.00,SYNERGY CONSTRUCTION & PROPERTY CONSULTANTS LLP,                         ,COMMUNITY SAFETY,Capitalised Fees And Charges,Not used in this Structure
Swale Borough Council,29UM,16/03/2016,1139824,2765.90,THE ALEXANDER CENTRE TRUST LIMITED,07281634                 ,COMMISSIONING & CUSTOMER CONTACT,Rates,Internal Trading Cost Centres
Swale Borough Council,29UM,16/03/2016,1139632,2272.65,THE JOHN WOODWARD PARTNERSHIP,                         ,PLANNING SERVICES,Fees And Services,Planning and Development Services
Swale Borough Council,29UM,16/03/2016,1139737,700.00,THE MEADS COMMUNITY CENTRE TRUST,                         ,COMMUNITY SAFETY,Grants & Subscriptions,Central Services to the Public
Swale Borough Council,29UM,16/03/2016,1139744,1230.00,VENN GROUP LIMITED,                         ,MKIP LEGAL SERVICES,Agency/Contract Staff,Internal Trading Cost Centres
Swale Borough Council,29UM,16/03/2016,1139687,700.00,VFM DATA LTD,                         ,LEISURE & OPEN SPACES,Consultancy/Specialist Advice,Cultural and Related Services
Swale Borough Council,29UM,16/03/2016,1139690,597.24,WHISTL UK LIMITED,04417047                 ,REVENUE SERVICES,Postage,Central Services to the Public
Swale Borough Council,29UM,16/03/2016,1139690,298.62,WHISTL UK LIMITED,04417047                 ,REVENUE SERVICES,Postage,Housing
Swale Borough Council,29UM,16/03/2016,1139690,312.19,WHISTL UK LIMITED,04417047                 ,PROPERTY SERVICES,Postage,Holding Codes
Swale Borough Council,29UM,16/03/2016,1139828,8002.38,WILLOW TREE HOME SOLUTIONS LTD,                         ,HOUSING SERVICES,Housing Renovation Grants,Not used in this Structure
Swale Borough Council,29UM,16/03/2016,1139741,1000.00,WOODCOMBE FC,                         ,TOURISM & SPORTS DEVELOPMENT,Grants & Subscriptions,Cultural and Related Services
Swale Borough Council,29UM,23/03/2016,1139999,507.30,ACORN MAINTENANCE SERVICES,3546898                  ,HOUSING SERVICES,Housing Renovation Grants,Not used in this Structure
Swale Borough Council,29UM,23/03/2016,1140000,495.30,ACORN MAINTENANCE SERVICES,3546898                  ,HOUSING SERVICES,Housing Renovation Grants,Not used in this Structure
Swale Borough Council,29UM,23/03/2016,1140001,4492.80,ACORN MAINTENANCE SERVICES,3546898                  ,HOUSING SERVICES,Housing Renovation Grants,Not used in this Structure
Swale Borough Council,29UM,23/03/2016,1139805,17100.00,ACS SYSTEMS (UK) LTD,2988060                  ,ICT,Payments in Year,Ledger/Suspense Codes
Swale Borough Council,29UM,23/03/2016,1139838,250.00,AGE UK FAVERSHAM & SITTINGBOURNE,                         ,COMMUNITY SAFETY,Grants & Subscriptions,Central Services to the Public
Swale Borough Council,29UM,23/03/2016,1139922,89.88,ALLSTAR BUSINESS SOLUTIONS LTD - (DT),1073098                  ,SERVICE DELIVERY,Petrol/Derv & Oil,Cultural and Related Services
Swale Borough Council,29UM,23/03/2016,1139922,100.43,ALLSTAR BUSINESS SOLUTIONS LTD - (DT),1073098                  ,ENVIRONMENTAL RESPONSE TEAM,Fuel For Contract Vehicles,Internal Trading Cost Centres
Swale Borough Council,29UM,23/03/2016,1139922,56.32,ALLSTAR BUSINESS SOLUTIONS LTD - (DT),1073098                  ,LEISURE & OPEN SPACES,Fuel For Contract Vehicles,Cultural and Related Services
Swale Borough Council,29UM,23/03/2016,1139922,42.60,ALLSTAR BUSINESS SOLUTIONS LTD - (DT),1073098                  ,ENVIRONMENTAL RESPONSE TEAM,Fuel For Contract Vehicles,Environmental and Regulatory Services
Swale Borough Council,29UM,23/03/2016,1139922,63.09,ALLSTAR BUSINESS SOLUTIONS LTD - (DT),1073098                  ,HOUSING SERVICES,Fuel For Contract Vehicles,Housing
Swale Borough Council,29UM,23/03/2016,1139879,300.00,ASPIRATIONS,                         ,COMMUNITY SAFETY,Grants & Subscriptions,Central Services to the Public
Swale Borough Council,29UM,23/03/2016,1139893,7100.00,BATES JPW ADVERTISING LTD,784540                   ,PLANNING SERVICES,Recruitment Adverts - Staff,Internal Trading Cost Centres
Swale Borough Council,29UM,23/03/2016,1139930,899.00,BATES JPW ADVERTISING LTD,784540                   ,PROPERTY SERVICES,Recruitment Adverts - Staff,Internal Trading Cost Centres
Swale Borough Council,29UM,23/03/2016,1139819,1238.69,BLENWOOD LTD,4383277                  ,LEISURE & OPEN SPACES,Maintenance - Grounds,Environmental and Regulatory Services
Swale Borough Council,29UM,23/03/2016,1139834,400.00,BOBBING VILLAGE HALL FUND,                         ,COMMUNITY SAFETY,Grants & Subscriptions,Central Services to the Public
Swale Borough Council,29UM,23/03/2016,1139874,792.00,CAMBRIDGE ECOLOGY LIMITED,6357707                  ,COMMUNITY SAFETY,Capitalised Fees And Charges,Not used in this Structure
Swale Borough Council,29UM,23/03/2016,1139818,6000.00,CBRE LTD,3536032                  ,PLANNING SERVICES,Fees And Services,Planning and Development Services
Swale Borough Council,29UM,23/03/2016,1139482,632.23,COMENSURA LTD,04085767                 ,HOUSING SERVICES,Agency/Contract Staff,Housing
Swale Borough Council,29UM,23/03/2016,1139482,1693.49,COMENSURA LTD,04085767                 ,MKIP LEGAL SERVICES,Agency/Contract Staff,Internal Trading Cost Centres
Swale Borough Council,29UM,23/03/2016,1139482,240.72,COMENSURA LTD,04085767                 ,HOUSING SERVICES,Agency/Contract Staff,Housing
Swale Borough Council,29UM,23/03/2016,1139873,616.80,COMENSURA LTD,04085767                 ,HOUSING SERVICES,Agency/Contract Staff,Housing
Swale Borough Council,29UM,23/03/2016,1139873,1693.47,COMENSURA LTD,04085767                 ,MKIP LEGAL SERVICES,Agency/Contract Staff,Internal Trading Cost Centres
Swale Borough Council,29UM,23/03/2016,1139892,9850.00,DAVID HUSKISSON ASSOCIATES LIMITED,2797095                  ,PLANNING SERVICES,Fees And Services,Planning and Development Services
Swale Borough Council,29UM,23/03/2016,1139910,600.00,DEMENTIA INSPIRED LTD,                         ,COMMUNITY SAFETY,Grants & Subscriptions,Central Services to the Public
Swale Borough Council,29UM,23/03/2016,1139997,3690.00,DOLPHIN STAIRLIFTS (KENT),04181846                 ,HOUSING SERVICES,Housing Renovation Grants,Not used in this Structure
Swale Borough Council,29UM,23/03/2016,1139998,460.00,DOLPHIN STAIRLIFTS (KENT),04181846                 ,HOUSING SERVICES,Housing Renovation Grants,Not used in this Structure
Swale Borough Council,29UM,23/03/2016,1139836,250.00,EAST KENT MENCAP,                         ,COMMUNITY SAFETY,Grants & Subscriptions,Central Services to the Public
Swale Borough Council,29UM,23/03/2016,1139556,358.14,EDF ENERGY,2228297                  ,CONTRACT & PROCUREMENT,Electricity,Environmental and Regulatory Services
Swale Borough Council,29UM,23/03/2016,1139409,146.67,EDF ENERGY CUSTOMERS PLC,                         ,HOUSING SERVICES,Electricity,Housing
Swale Borough Council,29UM,23/03/2016,1139409,116.20,EDF ENERGY CUSTOMERS PLC,                         ,HOUSING SERVICES,Gas,Housing
Swale Borough Council,29UM,23/03/2016,1139906,1250.00,FAVERSHAM BUILDINGS PRESERVATION TRUST,                         ,COMMUNITY SAFETY,Grants & Subscriptions,Central Services to the Public
Swale Borough Council,29UM,23/03/2016,1139960,1000.00,FAVERSHAM ROTARY CLUB,                         ,COMMUNITY SAFETY,Grants & Subscriptions,Central Services to the Public
Swale Borough Council,29UM,23/03/2016,1139919,550.00,FREESTON WATER TREATMENT LTD,2002230                  ,CONTRACT & PROCUREMENT,Service Contracts,Environmental and Regulatory Services
Swale Borough Council,29UM,23/03/2016,1139886,994.00,GAS DATA LTD,2640682                  ,MKIP ENVIRONMENTAL SERVICES,Fees And Services,Environmental and Regulatory Services
Swale Borough Council,29UM,23/03/2016,1139886,198.80,GAS DATA LTD,2640682                  ,MKIP ENVIRONMENTAL SERVICES,Fees And Services,Environmental and Regulatory Services
Swale Borough Council,29UM,23/03/2016,1139835,1050.00,GREEN CUBE CIC,                         ,COMMUNITY SAFETY,Grants & Subscriptions,Central Services to the Public
Swale Borough Council,29UM,23/03/2016,1139948,3982.29,HEADLEY BROTHERS LIMITED,00491836                 ,COMMUNICATIONS,Developing & Printing,Corporate & Democratic Core
Swale Borough Council,29UM,23/03/2016,1139734,166.67,HOLIDAY INN SITTINGBOURNE,                         ,ECONOMIC DEVELOPMENT,Hire Of Premises,Planning and Development Services
Swale Borough Council,29UM,23/03/2016,1139734,242.92,HOLIDAY INN SITTINGBOURNE,                         ,ECONOMIC DEVELOPMENT,Catering Provisions,Planning and Development Services
Swale Borough Council,29UM,23/03/2016,1140002,519.40,HUBBARD & HOUGHTON CONSTRUCTION LTD,                         ,HOUSING SERVICES,Housing Renovation Grants,Not used in this Structure
Swale Borough Council,29UM,23/03/2016,1140003,6975.00,HUBBARD & HOUGHTON CONSTRUCTION LTD,                         ,HOUSING SERVICES,Housing Renovation Grants,Not used in this Structure
Swale Borough Council,29UM,23/03/2016,1140004,5268.83,HUBBARD & HOUGHTON CONSTRUCTION LTD,                         ,HOUSING SERVICES,Housing Renovation Grants,Not used in this Structure
Swale Borough Council,29UM,23/03/2016,1140005,641.63,HUBBARD & HOUGHTON CONSTRUCTION LTD,                         ,HOUSING SERVICES,Housing Renovation Grants,Not used in this Structure
Swale Borough Council,29UM,23/03/2016,1140006,1702.80,HUBBARD & HOUGHTON CONSTRUCTION LTD,                         ,HOUSING SERVICES,Housing Renovation Grants,Not used in this Structure
Swale Borough Council,29UM,23/03/2016,1140007,2147.22,HUBBARD & HOUGHTON CONSTRUCTION LTD,                         ,HOUSING SERVICES,Housing Renovation Grants,Not used in this Structure
Swale Borough Council,29UM,23/03/2016,1140008,1636.10,HUBBARD & HOUGHTON CONSTRUCTION LTD,                         ,HOUSING SERVICES,Housing Renovation Grants,Not used in this Structure
Swale Borough Council,29UM,23/03/2016,1140009,6300.00,HUBBARD & HOUGHTON CONSTRUCTION LTD,                         ,HOUSING SERVICES,Housing Renovation Grants,Not used in this Structure
Swale Borough Council,29UM,23/03/2016,1139773,5500.00,INFORM CPI LTD,                         ,REVENUE SERVICES,Grants & Subscriptions,Central Services to the Public
Swale Borough Council,29UM,23/03/2016,1139775,1680.00,INFORM CPI LTD,                         ,REVENUE SERVICES,NNDR Additional Rateable Values,Central Services to the Public
Swale Borough Council,29UM,23/03/2016,1139776,-1680.00,INFORM CPI LTD,                         ,REVENUE SERVICES,NNDR Additional Rateable Values,Central Services to the Public
Swale Borough Council,29UM,23/03/2016,1139844,495.00,IRRV SERVICES LTD,223447                   ,REVENUE SERVICES,Fees And Services,Housing
Swale Borough Council,29UM,23/03/2016,1139925,300.00,IWADE ROC CAFE,                         ,COMMUNITY SAFETY,Grants & Subscriptions,Central Services to the Public
Swale Borough Council,29UM,23/03/2016,1140013,5341.50,J & D SYSTEMS,                         ,HOUSING SERVICES,Housing Renovation Grants,Not used in this Structure
Swale Borough Council,29UM,23/03/2016,1140014,6071.81,J & D SYSTEMS,                         ,HOUSING SERVICES,Housing Renovation Grants,Not used in this Structure
Swale Borough Council,29UM,23/03/2016,1140015,4976.37,J & D SYSTEMS,                         ,HOUSING SERVICES,Housing Renovation Grants,Not used in this Structure
Swale Borough Council,29UM,23/03/2016,1140016,619.80,J & D SYSTEMS,                         ,HOUSING SERVICES,Housing Renovation Grants,Not used in this Structure
Swale Borough Council,29UM,23/03/2016,1140017,740.00,J & D SYSTEMS,                         ,HOUSING SERVICES,Housing Renovation Grants,Not used in this Structure
Swale Borough Council,29UM,23/03/2016,1140018,1944.00,J & D SYSTEMS,                         ,HOUSING SERVICES,Housing Renovation Grants,Not used in this Structure
Swale Borough Council,29UM,23/03/2016,1139994,507.50,JCBS BUILDING SERVICES,                         ,HOUSING SERVICES,Housing Renovation Grants,Not used in this Structure
Swale Borough Council,29UM,23/03/2016,1139800,1728.00,MACDONALD & COMPANY FREELANCE LTD,3882135                  ,PLANNING SERVICES,Agency/Contract Staff,Internal Trading Cost Centres
Swale Borough Council,29UM,23/03/2016,1139967,1632.00,MACDONALD & COMPANY FREELANCE LTD,3882135                  ,PLANNING SERVICES,Agency/Contract Staff,Internal Trading Cost Centres
Swale Borough Council,29UM,23/03/2016,1138839,2450.00,MAGEES GUESTHOUSE,                         ,HOUSING SERVICES,B & B - Landlords Payments,Housing
Swale Borough Council,29UM,23/03/2016,1139501,62024.63,MAIDSTONE BOROUGH COUNCIL,                         ,HUMAN RESOURCES,MKIP Charges for HR Service,Internal Trading Cost Centres
Swale Borough Council,29UM,23/03/2016,1139638,6525.96,MAIDSTONE BOROUGH COUNCIL,                         ,CONTRACT & PROCUREMENT,Equipment Purchase,Environmental and Regulatory Services
Swale Borough Council,29UM,23/03/2016,1139642,11836.58,MAIDSTONE BOROUGH COUNCIL,                         ,CONTRACT & PROCUREMENT,Equipment Purchase,Environmental and Regulatory Services
Swale Borough Council,29UM,23/03/2016,1139789,19563.58,MAIDSTONE BOROUGH COUNCIL,                         ,ICT,Computer Equipment & Materials,Internal Trading Cost Centres
Swale Borough Council,29UM,23/03/2016,1139896,9302.32,MAIDSTONE BOROUGH COUNCIL,                         ,CONTRACT & PROCUREMENT,Equipment Purchase,Environmental and Regulatory Services
Swale Borough Council,29UM,23/03/2016,1139929,301.50,MAIDSTONE BOROUGH COUNCIL,                         ,CONTRACT & PROCUREMENT,Waste and Recycling Promotion / Comm's Projects,Environmental and Regulatory Services
Swale Borough Council,29UM,23/03/2016,1139942,16928.58,MAIDSTONE BOROUGH COUNCIL,                         ,MKIP LEGAL SERVICES,MKLS running costs,Internal Trading Cost Centres
Swale Borough Council,29UM,23/03/2016,1140103,921483.76,MAIDSTONE BOROUGH COUNCIL - DT,                         ,FINANCIAL SERVICES,Tariff to Gvt,Taxation and Non-Specific Grant Income
Swale Borough Council,29UM,23/03/2016,1137197,1398.00,MIDLAND SOFTWARE LTD,1852206                  ,HUMAN RESOURCES,Computer Equipment & Materials,Internal Trading Cost Centres
Swale Borough Council,29UM,23/03/2016,1139933,1000.00,MILLFIELD ALLOTMENT ASSOCIATION,                         ,TOURISM & SPORTS DEVELOPMENT,Grants & Subscriptions,Cultural and Related Services
Swale Borough Council,29UM,23/03/2016,1139881,300.00,MINSTER COMMUNITY CENTRE,                         ,COMMUNITY SAFETY,Grants & Subscriptions,Central Services to the Public
Swale Borough Council,29UM,23/03/2016,1139971,1968.75,MLM CONSULTING ENGINEERS LTD,3057104                  ,COMMUNITY SAFETY,Capitalised Fees And Charges,Not used in this Structure
Swale Borough Council,29UM,23/03/2016,1139806,375.00,REDACTED PERSONAL INFORMATION,                         ,REVENUE SERVICES,Legal Fees,Housing
Swale Borough Council,29UM,23/03/2016,1139656,2745.00,REDACTED PERSONAL INFORMATION,                         ,HOUSING SERVICES,B & B - Landlords Payments,Housing
Swale Borough Council,29UM,23/03/2016,1139837,700.00,MURSTON ALL SAINTS TRUST,                         ,COMMUNITY SAFETY,Grants & Subscriptions,Central Services to the Public
Swale Borough Council,29UM,23/03/2016,1139946,6432.00,NETCALL TELECOM LTD,02831215                 ,COMMISSIONING & CUSTOMER CONTACT,Computer Equipment & Materials,Internal Trading Cost Centres
Swale Borough Council,29UM,23/03/2016,1139988,441.60,NEWS PLUS,                         ,COMMUNICATIONS,Newspapers & Periodicals,Corporate & Democratic Core
Swale Borough Council,29UM,23/03/2016,1139973,1044.05,NORTH KENT ARCHITEC. CENTRE LTD,3284438                  ,PLANNING SERVICES,Fees And Services,Internal Trading Cost Centres
Swale Borough Council,29UM,23/03/2016,1139777,953.65,O2 (UK) LTD,1743099                  ,ICT,Telephone,Corporate & Democratic Core
Swale Borough Council,29UM,23/03/2016,1139777,36.02,O2 (UK) LTD,1743099                  ,ICT,Telephone,Corporate & Democratic Core
Swale Borough Council,29UM,23/03/2016,1139484,4759.40,P BINNIE CONSULTANCY LTD,07794784                 ,ECONOMIC DEVELOPMENT,Consultancy/Specialist Advice,Planning and Development Services
Swale Borough Council,29UM,23/03/2016,1139833,3506.30,P BINNIE CONSULTANCY LTD,07794784                 ,ECONOMIC DEVELOPMENT,Consultancy/Specialist Advice,Planning and Development Services
Swale Borough Council,29UM,23/03/2016,1139384,243.36,PHS GROUP LTD,770813                   ,PROPERTY SERVICES,Service Contracts,Corporate & Democratic Core
Swale Borough Council,29UM,23/03/2016,1139384,78.00,PHS GROUP LTD,770813                   ,PROPERTY SERVICES,Service Contracts,Corporate & Democratic Core
Swale Borough Council,29UM,23/03/2016,1139384,25.35,PHS GROUP LTD,770813                   ,PROPERTY SERVICES,Service Contracts,Corporate & Democratic Core
Swale Borough Council,29UM,23/03/2016,1139384,192.40,PHS GROUP LTD,770813                   ,PROPERTY SERVICES,Service Contracts,Corporate & Democratic Core
Swale Borough Council,29UM,23/03/2016,1139996,4231.04,PRECEPT CS LIMITED,07311462                 ,HOUSING SERVICES,Housing Renovation Grants,Not used in this Structure
Swale Borough Council,29UM,23/03/2016,1139869,431.97,PRIMESIGHT,1847728                  ,COMMUNICATIONS,Advertising & Promotion,Internal Trading Cost Centres
Swale Borough Council,29UM,23/03/2016,1140108,11.35,TESCO,,DEMOCRATIC & ELECTORAL SERVICES,Catering Provisions,Internal Trading Cost Centres
Swale Borough Council,29UM,23/03/2016,1140108,86.67,HOLIDAY INN LEICESTER,,DEMOCRATIC & ELECTORAL SERVICES,Conference,Corporate & Democratic Core
Swale Borough Council,29UM,23/03/2016,1140109,50.00,WICKES,,PROPERTY SERVICES,Non-Planned Building Maintenance,Trading Undertaking
Swale Borough Council,29UM,23/03/2016,1140109,15.96,SITTINGBOURNE SHOES,,PROPERTY SERVICES,Equipment Purchase,Cultural and Related Services
Swale Borough Council,29UM,23/03/2016,1140109,87.12,DIRECT TABLEWARE,,PROPERTY SERVICES,Equipment Purchase,Corporate & Democratic Core
Swale Borough Council,29UM,23/03/2016,1140110,25.00,FLOWERS BY BEATRICE,,DEMOCRATIC & ELECTORAL SERVICES,Hospitality Allowance - Mayor,Corporate & Democratic Core
Swale Borough Council,29UM,23/03/2016,1140110,35.00,SBC CIVIL ENFORCEMENT,,DEMOCRATIC & ELECTORAL SERVICES,Petrol/Derv & Oil,Corporate & Democratic Core
Swale Borough Council,29UM,23/03/2016,1140110,149.95,THE BAC LTD,,DEMOCRATIC & ELECTORAL SERVICES,Equipment Purchase,Corporate & Democratic Core
Swale Borough Council,29UM,23/03/2016,1140111,149.00,INGRAM IMAGE LTD,,POLICY,Materials - Artwork,Internal Trading Cost Centres
Swale Borough Council,29UM,23/03/2016,1140111,11.00,MEDWAY COUNCIL,,POLICY,Fees And Services,Planning and Development Services
Swale Borough Council,29UM,23/03/2016,1140112,186.00,SWALE HEATING,                         ,HOUSING SERVICES,General Maintenance,Housing
Swale Borough Council,29UM,23/03/2016,1140112,186.00,SWALE HEATING,                         ,HOUSING SERVICES,General Maintenance,Housing
Swale Borough Council,29UM,23/03/2016,1140112,90.80,BEST ONE,                         ,HOUSING SERVICES,Water - Rateable Value,Housing
Swale Borough Council,29UM,23/03/2016,1140112,494.15,AO RETAIL,                         ,HOUSING SERVICES,Furniture,Housing
Swale Borough Council,29UM,23/03/2016,1140112,77.50,ASDA,                         ,HOUSING SERVICES,Furniture,Housing
Swale Borough Council,29UM,23/03/2016,1140112,141.88,ARGOS,                         ,HOUSING SERVICES,Furniture,Housing
Swale Borough Council,29UM,23/03/2016,1140112,80.27,TESCO,                         ,HOUSING SERVICES,Furniture,Housing
Swale Borough Council,29UM,23/03/2016,1140112,178.33,TESCO,                         ,HOUSING SERVICES,Furniture,Housing
Swale Borough Council,29UM,23/03/2016,1140112,104.16,TESCO,                         ,HOUSING SERVICES,Furniture,Housing
Swale Borough Council,29UM,23/03/2016,1140112,645.77,WORLDSTORE,                         ,HOUSING SERVICES,Furniture,Housing
Swale Borough Council,29UM,23/03/2016,1140113,310.00,INCISIVE MEDIA,                         ,POLICY,Grants & Subscriptions,Environmental and Regulatory Services
Swale Borough Council,29UM,23/03/2016,1140113,224.10,EMAP LTD,                         ,CHIEF EXECUTIVE,Grants & Subscriptions,Internal Trading Cost Centres
Swale Borough Council,29UM,23/03/2016,1140113,14.28,MORRISONS,                         ,CHIEF EXECUTIVE,Catering Provisions,Internal Trading Cost Centres
Swale Borough Council,29UM,23/03/2016,1140114,1086.00,HMCTS,                         ,REVENUE SERVICES,Fees And Services,Central Services to the Public
Swale Borough Council,29UM,23/03/2016,1140114,1002.00,HMCTS,                         ,REVENUE SERVICES,Fees And Services,Central Services to the Public
Swale Borough Council,29UM,23/03/2016,1140114,111.00,HMCTS,                         ,REVENUE SERVICES,Fees And Services,Central Services to the Public
Swale Borough Council,29UM,23/03/2016,1140115,8.15,HOMEBASE,                         ,HOUSING SERVICES,Staying Put - Materials,Housing
Swale Borough Council,29UM,23/03/2016,1140115,4.41,WICKES,                         ,HOUSING SERVICES,Staying Put - Materials,Housing
Swale Borough Council,29UM,23/03/2016,1140115,61.74,ASDA,                         ,HOUSING SERVICES,Fuel For Contract Vehicles,Housing
Swale Borough Council,29UM,23/03/2016,1140115,55.86,B & M RETAIL,                         ,HOUSING SERVICES,Staying Put - Materials,Housing
Swale Borough Council,29UM,23/03/2016,1140115,3.75,J C LOCK & SAFE,                         ,HOUSING SERVICES,Staying Put - Materials,Housing
Swale Borough Council,29UM,23/03/2016,1140115,18.99,ARGOS,                         ,HOUSING SERVICES,Staying Put - Materials,Housing
Swale Borough Council,29UM,23/03/2016,1140115,29.17,A S BELL LTD,                         ,HOUSING SERVICES,Staying Put - Materials,Housing
Swale Borough Council,29UM,23/03/2016,1140115,59.85,B & M RETAIL,                         ,HOUSING SERVICES,Staying Put - Materials,Housing
Swale Borough Council,29UM,23/03/2016,1140115,18.05,WICKES,                         ,HOUSING SERVICES,Staying Put - Materials,Housing
Swale Borough Council,29UM,23/03/2016,1140115,10.98,DUNELM ,                         ,HOUSING SERVICES,Staying Put - Materials,Housing
Swale Borough Council,29UM,23/03/2016,1140115,64.00,B & Q GILLINGHAM,                         ,HOUSING SERVICES,Staying Put - Materials,Housing
Swale Borough Council,29UM,23/03/2016,1140116,65.35,CILEX,                         ,MKIP LEGAL SERVICES,"Books, Journals & e - resources",Internal Trading Cost Centres
Swale Borough Council,29UM,23/03/2016,1140116,131.00,ILEX,,MKIP LEGAL SERVICES,Training - Courses,Internal Trading Cost Centres
Swale Borough Council,29UM,23/03/2016,1140116,131.00,ILEX,,MKIP LEGAL SERVICES,Training - Courses,Internal Trading Cost Centres
Swale Borough Council,29UM,23/03/2016,1140116,83.47,JCT LTD,                         ,MKIP LEGAL SERVICES,"Books, Journals & e - resources",Internal Trading Cost Centres
Swale Borough Council,29UM,23/03/2016,1140116,41.65,CURRYS,                         ,MKIP LEGAL SERVICES,"Books, Journals & e - resources",Internal Trading Cost Centres
Swale Borough Council,29UM,23/03/2016,1139652,490.00,REARDON PROPERTIES,                         ,HOUSING SERVICES,B & B - Landlords Payments,Housing
Swale Borough Council,29UM,23/03/2016,1139653,315.00,REARDON PROPERTIES,                         ,HOUSING SERVICES,B & B - Landlords Payments,Housing
Swale Borough Council,29UM,23/03/2016,1139654,785.00,REARDON PROPERTIES,                         ,HOUSING SERVICES,B & B - Landlords Payments,Housing
Swale Borough Council,29UM,23/03/2016,1139655,875.00,REARDON PROPERTIES,                         ,HOUSING SERVICES,B & B - Landlords Payments,Housing
Swale Borough Council,29UM,23/03/2016,1139839,300.00,ROTARY CLUB OF SITTINGBOURNE INVICTA,                         ,COMMUNITY SAFETY,Grants & Subscriptions,Central Services to the Public
Swale Borough Council,29UM,23/03/2016,1139804,680.16,ROYAL MAIL GROUP LTD,4138203                  ,REVENUE SERVICES,Postage,Central Services to the Public
Swale Borough Council,29UM,23/03/2016,1139675,351.00,SHEPPEY MATTERS,3946296                  ,ECONOMIC DEVELOPMENT,Fees And Services,Planning and Development Services
Swale Borough Council,29UM,23/03/2016,1139878,300.00,SHEPPEY MATTERS,3946296                  ,COMMUNITY SAFETY,Grants & Subscriptions,Central Services to the Public
Swale Borough Council,29UM,23/03/2016,1139815,650.00,REDACTED PERSONAL INFORMATION,                         ,HOUSING SERVICES,RDS - Rent in Advance (Supporting People),Housing
Swale Borough Council,29UM,23/03/2016,1139909,1500.00,SOLON SECURITY,03065075                 ,ENVIRONMENTAL RESPONSE TEAM,Equipment Purchase,Internal Trading Cost Centres
Swale Borough Council,29UM,23/03/2016,1140010,1163.61,SOUTH EAST BUILDING CO LTD,1786838                  ,HOUSING SERVICES,Housing Renovation Grants,Not used in this Structure
Swale Borough Council,29UM,23/03/2016,1140011,565.22,SOUTH EAST BUILDING CO LTD,1786838                  ,HOUSING SERVICES,Housing Renovation Grants,Not used in this Structure
Swale Borough Council,29UM,23/03/2016,1140012,3712.50,SOUTH EAST BUILDING CO LTD,1786838                  ,HOUSING SERVICES,Housing Renovation Grants,Not used in this Structure
Swale Borough Council,29UM,23/03/2016,1139882,878.00,SWALE ARTS FORUM,                         ,COMMUNITY SAFETY,Grants & Subscriptions,Central Services to the Public
Swale Borough Council,29UM,23/03/2016,1139826,240.00,TEDDSONS & SONS LTD,08945129                 ,LEISURE & OPEN SPACES,Maintenance - Grounds,Cultural and Related Services
Swale Borough Council,29UM,23/03/2016,1139826,59.00,TEDDSONS & SONS LTD,08945129                 ,LEISURE & OPEN SPACES,Maintenance - Grounds,Cultural and Related Services
Swale Borough Council,29UM,23/03/2016,1139396,330.00,TENSID UK PLC,2308378                  ,CONTRACT & PROCUREMENT,Clearance Special - Graffiti,Environmental and Regulatory Services
Swale Borough Council,29UM,23/03/2016,1139397,338.68,TENSID UK PLC,2308378                  ,CONTRACT & PROCUREMENT,Clearance Special - Graffiti,Environmental and Regulatory Services
Swale Borough Council,29UM,23/03/2016,1139899,700.00,TEYNHAM PARISH COUNCIL,                         ,COMMUNITY SAFETY,Grants & Subscriptions,Central Services to the Public
Swale Borough Council,29UM,23/03/2016,1139883,537.50,THE ALEXANDER CENTRE TRUST LIMITED,07281634                 ,PROPERTY SERVICES,Rents - Properties,Corporate & Democratic Core
Swale Borough Council,29UM,23/03/2016,1139907,400.00,THE WILLOW TREE PROJECT,                         ,COMMUNITY SAFETY,Grants & Subscriptions,Central Services to the Public
Swale Borough Council,29UM,23/03/2016,1139995,1937.00,TLC STAIRLIFTS LTD,OC337646                 ,HOUSING SERVICES,Housing Renovation Grants,Not used in this Structure
Swale Borough Council,29UM,23/03/2016,1134179,1537.00,TOPCOAT CONSTRUCTION LTD,3075151                  ,PROPERTY SERVICES,Non-Planned Building Maintenance,Trading Undertaking
Swale Borough Council,29UM,23/03/2016,1139903,1230.00,VENN GROUP LIMITED,                         ,MKIP LEGAL SERVICES,Agency/Contract Staff,Internal Trading Cost Centres
Swale Borough Council,29UM,23/03/2016,1139904,1230.00,VENN GROUP LIMITED,                         ,MKIP LEGAL SERVICES,Agency/Contract Staff,Internal Trading Cost Centres
Swale Borough Council,29UM,23/03/2016,1139905,881.50,VENN GROUP LIMITED,                         ,MKIP LEGAL SERVICES,Agency/Contract Staff,Internal Trading Cost Centres
Swale Borough Council,29UM,23/03/2016,1139871,15639.33,WHISTL UK LIMITED,04417047                 ,REVENUE SERVICES,Postage,Central Services to the Public
Swale Borough Council,29UM,23/03/2016,1139871,7819.67,WHISTL UK LIMITED,04417047                 ,REVENUE SERVICES,Postage,Housing
Swale Borough Council,29UM,23/03/2016,1139871,296.57,WHISTL UK LIMITED,04417047                 ,PROPERTY SERVICES,Postage,Holding Codes
Swale Borough Council,29UM,23/03/2016,1139840,1050.00,WOODCOMBE FC,                         ,COMMUNITY SAFETY,Grants & Subscriptions,Central Services to the Public
Swale Borough Council,29UM,23/03/2016,1140117,2555.55,WORLDPAY (DT),07316500                 ,REVENUE SERVICES,Commission Paid,Central Services to the Public
Swale Borough Council,29UM,23/03/2016,1140117,120.50,WORLDPAY (DT),07316500                 ,REVENUE SERVICES,Commission Paid,Central Services to the Public
Swale Borough Council,29UM,23/03/2016,1140117,28.96,WORLDPAY (DT),07316500                 ,REVENUE SERVICES,Commission Paid,Housing
Swale Borough Council,29UM,23/03/2016,1140117,22.02,WORLDPAY (DT),07316500                 ,EXCHEQUER,Commission Paid,Internal Trading Cost Centres
Swale Borough Council,29UM,23/03/2016,1140117,796.27,WORLDPAY (DT),07316500                 ,EXCHEQUER,Commission Paid,Internal Trading Cost Centres
Swale Borough Council,29UM,23/03/2016,1140117,306.86,WORLDPAY (DT),07316500                 ,EXCHEQUER,Commission Paid,Internal Trading Cost Centres
Swale Borough Council,29UM,23/03/2016,1140117,21.99,WORLDPAY (DT),07316500                 ,ICT,Fees And Services,Internal Trading Cost Centres
Swale Borough Council,29UM,31/03/2016,1140027,500.00,5TH SHEPPEY SCOUT GROUP,                         ,COMMUNITY SAFETY,Grants & Subscriptions,Central Services to the Public
Swale Borough Council,29UM,31/03/2016,1140241,6757.14,ACORN MAINTENANCE SERVICES,3546898                  ,HOUSING SERVICES,Housing Renovation Grants,Not used in this Structure
Swale Borough Council,29UM,31/03/2016,1140239,2324.00,ALL THE EXTRAS LIMITED,09062780                 ,DEMOCRATIC & ELECTORAL SERVICES,Payments in Year,Ledger/Suspense Codes
Swale Borough Council,29UM,31/03/2016,1140166,34.17,ALLSTAR BUSINESS SOLUTIONS LTD - (DT),1073098                  ,DEMOCRATIC & ELECTORAL SERVICES,Petrol/Derv & Oil,Corporate & Democratic Core
Swale Borough Council,29UM,31/03/2016,1140166,42.16,ALLSTAR BUSINESS SOLUTIONS LTD - (DT),1073098                  ,SERVICE DELIVERY,Petrol/Derv & Oil,Cultural and Related Services
Swale Borough Council,29UM,31/03/2016,1140166,215.85,ALLSTAR BUSINESS SOLUTIONS LTD - (DT),1073098                  ,ENVIRONMENTAL RESPONSE TEAM,Fuel For Contract Vehicles,Internal Trading Cost Centres
Swale Borough Council,29UM,31/03/2016,1140030,1000.00,BORDEN FETE COMMITTEE,                         ,COMMUNITY SAFETY,Grants & Subscriptions,Central Services to the Public
Swale Borough Council,29UM,31/03/2016,1140140,1250.00,BRENTS COMMUNITY ASSOCIATION,                         ,COMMUNITY SAFETY,Grants & Subscriptions,Central Services to the Public
Swale Borough Council,29UM,31/03/2016,1139959,1680.00,BT DEVELOPMENTS,                         ,HOUSING SERVICES,B & B - Landlords Payments,Housing
Swale Borough Council,29UM,31/03/2016,1139950,1330.00,CAPITA BUSINESS SERVICES LTD,                         ,REVENUE SERVICES,Fees And Services,Housing
Swale Borough Council,29UM,31/03/2016,1139953,3402.00,CAPITA BUSINESS SERVICES LTD,                         ,REVENUE SERVICES,Fees And Services,Housing
Swale Borough Council,29UM,31/03/2016,1139954,-3402.00,CAPITA BUSINESS SERVICES LTD,                         ,REVENUE SERVICES,Fees And Services,Housing
Swale Borough Council,29UM,31/03/2016,1139955,2835.00,CAPITA BUSINESS SERVICES LTD,                         ,REVENUE SERVICES,Fees And Services,Housing
Swale Borough Council,29UM,31/03/2016,1139976,950.84,CAPITA BUSINESS SERVICES LTD,                         ,REVENUE SERVICES,Payments in Year,Ledger/Suspense Codes
Swale Borough Council,29UM,31/03/2016,1140120,345.00,CHEGWORTH GRAPHIC,7683594                  ,COMMUNICATIONS,Signage,Internal Trading Cost Centres
Swale Borough Council,29UM,31/03/2016,1140232,480.00,CIEH,                         ,MKIP ENVIRONMENTAL SERVICES,"Books, Journals & e - resources",Internal Trading Cost Centres
Swale Borough Council,29UM,31/03/2016,1140022,250.00,CITIZENS ADVICE BUREAU IN SWALE,5052691                  ,COMMUNITY SAFETY,Grants & Subscriptions,Central Services to the Public
Swale Borough Council,29UM,31/03/2016,1140206,439.90,CITY & KENT CLEANING LTD,                         ,PROPERTY SERVICES,Cleaning Materials,Internal Trading Cost Centres
Swale Borough Council,29UM,31/03/2016,1140277,1778.25,CO-OP BANK PLC - (DT),                         ,REVENUE SERVICES,Bank Charges Pay Point,Central Services to the Public
Swale Borough Council,29UM,31/03/2016,1140277,11.27,CO-OP BANK PLC - (DT),                         ,REVENUE SERVICES,Bank Charges Pay Point,Central Services to the Public
Swale Borough Council,29UM,31/03/2016,1140277,72.61,CO-OP BANK PLC - (DT),                         ,REVENUE SERVICES,Bank Charges Pay Point,Housing
Swale Borough Council,29UM,31/03/2016,1140277,6.76,CO-OP BANK PLC - (DT),                         ,EXCHEQUER,Bank Charges Pay Point,Internal Trading Cost Centres
Swale Borough Council,29UM,31/03/2016,1140277,60.88,CO-OP BANK PLC - (DT),                         ,EXCHEQUER,Bank Charges Pay Point,Internal Trading Cost Centres
Swale Borough Council,29UM,31/03/2016,1140048,225.83,DCB (KENT) LIMITED,03532339                 ,PROPERTY SERVICES,Non-Planned Building Maintenance,Corporate & Democratic Core
Swale Borough Council,29UM,31/03/2016,1140048,22.50,DCB (KENT) LIMITED,03532339                 ,PROPERTY SERVICES,Non-Planned Building Maintenance,Corporate & Democratic Core
Swale Borough Council,29UM,31/03/2016,1140048,204.57,DCB (KENT) LIMITED,03532339                 ,CONTRACT & PROCUREMENT,Non-Planned Building Maintenance,Environmental and Regulatory Services
Swale Borough Council,29UM,31/03/2016,1140048,339.96,DCB (KENT) LIMITED,03532339                 ,CONTRACT & PROCUREMENT,Non-Planned Building Maintenance,Environmental and Regulatory Services
Swale Borough Council,29UM,31/03/2016,1140048,7323.29,DCB (KENT) LIMITED,03532339                 ,LEISURE & OPEN SPACES,Non-Planned Building Maintenance,Cultural and Related Services
Swale Borough Council,29UM,31/03/2016,1140192,383.00,DIVERSITY HOUSE,                         ,TOURISM & SPORTS DEVELOPMENT,Grants & Subscriptions,Cultural and Related Services
Swale Borough Council,29UM,31/03/2016,1140242,1661.48,DOLPHIN STAIRLIFTS (KENT),04181846                 ,HOUSING SERVICES,Housing Renovation Grants,Not used in this Structure
Swale Borough Council,29UM,31/03/2016,1140244,410.00,DOLPHIN STAIRLIFTS (KENT),04181846                 ,HOUSING SERVICES,Housing Renovation Grants,Not used in this Structure
Swale Borough Council,29UM,31/03/2016,1140024,300.00,EASTCHURCH PARISH COUNCIL,                         ,COMMUNITY SAFETY,Grants & Subscriptions,Central Services to the Public
Swale Borough Council,29UM,31/03/2016,1140077,619.01,EDF ENERGY,2228297                  ,LEISURE & OPEN SPACES,Electricity,Cultural and Related Services
Swale Borough Council,29UM,31/03/2016,1140078,632.62,EDF ENERGY,2228297                  ,LEISURE & OPEN SPACES,Electricity,Cultural and Related Services
Swale Borough Council,29UM,31/03/2016,1140079,639.36,EDF ENERGY,2228297                  ,LEISURE & OPEN SPACES,Electricity,Cultural and Related Services
Swale Borough Council,29UM,31/03/2016,1140080,632.45,EDF ENERGY,2228297                  ,LEISURE & OPEN SPACES,Electricity,Cultural and Related Services
Swale Borough Council,29UM,31/03/2016,1140250,310.79,FAVERSHAM TROPHIES,                         ,ECONOMY & COMMUNITIES,Communities Fund Expenditure,Ledger/Suspense Codes
Swale Borough Council,29UM,31/03/2016,1140179,600.00,FRIENDS OF KEMSLEY PRIMARY SCHOOL,                         ,COMMUNITY SAFETY,Grants & Subscriptions,Central Services to the Public
Swale Borough Council,29UM,31/03/2016,1140235,434.00,HAVILL FUNERAL SERVICES LIMITED,                         ,LEISURE & OPEN SPACES,Maintenance - Grounds,Environmental and Regulatory Services
Swale Borough Council,29UM,31/03/2016,1140254,2032.00,HOLIDAY INN SITTINGBOURNE,                         ,ECONOMY & COMMUNITIES,Communities Fund Expenditure,Ledger/Suspense Codes
Swale Borough Council,29UM,31/03/2016,1140247,739.20,HUBBARD & HOUGHTON CONSTRUCTION LTD,                         ,HOUSING SERVICES,Housing Renovation Grants,Not used in this Structure
Swale Borough Council,29UM,31/03/2016,1140248,2325.20,HUBBARD & HOUGHTON CONSTRUCTION LTD,                         ,HOUSING SERVICES,Housing Renovation Grants,Not used in this Structure
Swale Borough Council,29UM,31/03/2016,1140249,3028.00,HUBBARD & HOUGHTON CONSTRUCTION LTD,                         ,HOUSING SERVICES,Housing Renovation Grants,Not used in this Structure
Swale Borough Council,29UM,31/03/2016,1140191,716.69,IWADE ROC CAFE,                         ,TOURISM & SPORTS DEVELOPMENT,Grants & Subscriptions,Cultural and Related Services
Swale Borough Council,29UM,31/03/2016,1140240,593.50,J & D SYSTEMS,                         ,HOUSING SERVICES,Housing Renovation Grants,Not used in this Structure
Swale Borough Council,29UM,31/03/2016,1140245,567.00,JCBS BUILDING SERVICES,                         ,HOUSING SERVICES,Housing Renovation Grants,Not used in this Structure
Swale Borough Council,29UM,31/03/2016,1140246,5581.01,JCBS BUILDING SERVICES,                         ,HOUSING SERVICES,Housing Renovation Grants,Not used in this Structure
Swale Borough Council,29UM,31/03/2016,1140052,300.00,KCC SWALE YOUTH HUB,                         ,COMMUNITY SAFETY,Grants & Subscriptions,Central Services to the Public
Swale Borough Council,29UM,31/03/2016,1139985,1000.00,KENT COUNTY COUNCIL,                         ,LEISURE & OPEN SPACES,Grants & Subscriptions,Cultural and Related Services
Swale Borough Council,29UM,31/03/2016,1139986,7041.13,KENT COUNTY COUNCIL,                         ,ICT,Computer Equipment & Materials,Internal Trading Cost Centres
Swale Borough Council,29UM,31/03/2016,1139992,469.21,KENT COUNTY COUNCIL (KCS),                         ,REVENUE SERVICES,Computer Equipment & Materials,Housing
Swale Borough Council,29UM,31/03/2016,1140039,780.00,KENT INVICTA CHAMBER OF COMMERCE,2794615                  ,ECONOMIC DEVELOPMENT,Fees And Services,Planning and Development Services
Swale Borough Council,29UM,31/03/2016,1140040,491.25,KENT INVICTA CHAMBER OF COMMERCE,2794615                  ,ECONOMIC DEVELOPMENT,Fees And Services,Planning and Development Services
Swale Borough Council,29UM,31/03/2016,1140041,266.25,KENT INVICTA CHAMBER OF COMMERCE,2794615                  ,ECONOMIC DEVELOPMENT,Fees And Services,Planning and Development Services
Swale Borough Council,29UM,31/03/2016,1140042,-266.25,KENT INVICTA CHAMBER OF COMMERCE,2794615                  ,ECONOMIC DEVELOPMENT,Fees And Services,Planning and Development Services
Swale Borough Council,29UM,31/03/2016,1139175,5168.00,KENT MESSENGER LTD,505554                   ,COMMUNICATIONS,Advertising & Promotion,Internal Trading Cost Centres
Swale Borough Council,29UM,31/03/2016,1140176,8619.75,KINGDOM SECURITY LIMITED,                         ,ENVIRONMENTAL RESPONSE TEAM,Fees And Services,Planning and Development Services
Swale Borough Council,29UM,31/03/2016,1140175,10056.00,LAYFIELD UTILITIES LTD,09102559                 ,LEISURE & OPEN SPACES,Maintenance - Grounds,Environmental and Regulatory Services
Swale Borough Council,29UM,31/03/2016,1140234,6820.00,LAYFIELD UTILITIES LTD,09102559                 ,LEISURE & OPEN SPACES,Maintenance - Grounds,Environmental and Regulatory Services
Swale Borough Council,29UM,31/03/2016,1140202,300.00,LEMAR LIMITED,04350292                 ,SERVICE DELIVERY,Private Contractors - CIS,Highway and Transport Services
Swale Borough Council,29UM,31/03/2016,1140202,480.00,LEMAR LIMITED,04350292                 ,SERVICE DELIVERY,Private Contractors - CIS,Highway and Transport Services
Swale Borough Council,29UM,31/03/2016,1140203,300.00,LEMAR LIMITED,04350292                 ,SERVICE DELIVERY,Private Contractors - CIS,Highway and Transport Services
Swale Borough Council,29UM,31/03/2016,1140203,190.00,LEMAR LIMITED,04350292                 ,SERVICE DELIVERY,Private Contractors - CIS,Highway and Transport Services
Swale Borough Council,29UM,31/03/2016,1140204,300.00,LEMAR LIMITED,04350292                 ,SERVICE DELIVERY,Private Contractors - CIS,Highway and Transport Services
Swale Borough Council,29UM,31/03/2016,1140204,380.00,LEMAR LIMITED,04350292                 ,SERVICE DELIVERY,Private Contractors - CIS,Highway and Transport Services
Swale Borough Council,29UM,31/03/2016,1140222,250.00,LEMAR LIMITED,04350292                 ,SERVICE DELIVERY,Private Contractors - CIS,Highway and Transport Services
Swale Borough Council,29UM,31/03/2016,1140222,100.00,LEMAR LIMITED,04350292                 ,SERVICE DELIVERY,Private Contractors - CIS,Highway and Transport Services
Swale Borough Council,29UM,31/03/2016,1139825,614.56,LLOYDS BANK - (DT),                         ,FINANCIAL SERVICES,Bank Charges,Corporate & Democratic Core
Swale Borough Council,29UM,31/03/2016,1139979,2600.00,MAG:NET SOLUTIONS LTD,4304138                  ,REVENUE SERVICES,Fees And Services,Central Services to the Public
Swale Borough Council,29UM,31/03/2016,1139671,3125.00,MAGEES GUESTHOUSE,                         ,HOUSING SERVICES,B & B - Landlords Payments,Housing
Swale Borough Council,29UM,31/03/2016,1139829,3355.00,MAGEES GUESTHOUSE,                         ,HOUSING SERVICES,B & B - Landlords Payments,Housing
Swale Borough Council,29UM,31/03/2016,1139641,68808.51,MAIDSTONE BOROUGH COUNCIL,                         ,CONTRACT & PROCUREMENT,Private Contractors,Environmental and Regulatory Services
Swale Borough Council,29UM,31/03/2016,1139897,71335.88,MAIDSTONE BOROUGH COUNCIL,                         ,CONTRACT & PROCUREMENT,Private Contractors,Environmental and Regulatory Services
Swale Borough Council,29UM,31/03/2016,1139897,190310.02,MAIDSTONE BOROUGH COUNCIL,                         ,CONTRACT & PROCUREMENT,Private Contractors,Environmental and Regulatory Services
Swale Borough Council,29UM,31/03/2016,1139902,373.14,MAIDSTONE BOROUGH COUNCIL,                         ,ICT,Equipment Rental,Holding Codes
Swale Borough Council,29UM,31/03/2016,1140174,14177.89,MAIDSTONE BOROUGH COUNCIL,                         ,REVENUE SERVICES,MKS Debt Recovery Partnership Charges,Central Services to the Public
Swale Borough Council,29UM,31/03/2016,1140193,54100.00,MAIDSTONE BOROUGH COUNCIL,                         ,CAR PARKS,Staff Costs Recovery - MKIP,Internal Trading Cost Centres
Swale Borough Council,29UM,31/03/2016,1139958,3588.90,MARTIN CRANFIELD ASSOCIATES LIMITED,05210576                 ,MKIP ENVIRONMENTAL SERVICES,Private Contractors,Environmental and Regulatory Services
Swale Borough Council,29UM,31/03/2016,1140051,800.00,MEDWAY CARES,                         ,COMMUNITY SAFETY,Grants & Subscriptions,Central Services to the Public
Swale Borough Council,29UM,31/03/2016,1140145,2243.85,MEDWAY COUNCIL,                         ,COMMUNITY SAFETY,CCTV Monitoring Service,Environmental and Regulatory Services
Swale Borough Council,29UM,31/03/2016,1140146,2243.84,MEDWAY COUNCIL,                         ,COMMUNITY SAFETY,CCTV Monitoring Service,Environmental and Regulatory Services
Swale Borough Council,29UM,31/03/2016,1140258,350.00,MEDWAY COUNCIL,                         ,COMMUNITY SAFETY,CCTV Monitoring Service,Environmental and Regulatory Services
Swale Borough Council,29UM,31/03/2016,1139956,1050.00,MELENGA BUSINESS SOLUTIONS LTD,06148446                 ,FINANCIAL SERVICES,Agency/Contract Staff,Internal Trading Cost Centres
Swale Borough Council,29UM,31/03/2016,1140031,1000.00,MILLFIELD ALLOTMENT ASSOCIATION,                         ,COMMUNITY SAFETY,Grants & Subscriptions,Central Services to the Public
Swale Borough Council,29UM,31/03/2016,1139552,7609.61,NORTHGATE PUBLIC SERVICES (UK) LTD,968498                   ,ICT,Payments in Year,Ledger/Suspense Codes
Swale Borough Council,29UM,31/03/2016,1139553,1106.81,NORTHGATE PUBLIC SERVICES (UK) LTD,968498                   ,ICT,Payments in Year,Ledger/Suspense Codes
Swale Borough Council,29UM,31/03/2016,1140243,1843.50,OMEGA COMMUNICATIONS LTD,08591273                 ,COMMUNITY SAFETY,Fees And Services,Planning and Development Services
Swale Borough Council,29UM,31/03/2016,1139943,480.00,OXFORD INSTRUMENTS,1044063                  ,MKIP ENVIRONMENTAL SERVICES,Fees And Services,Environmental and Regulatory Services
Swale Borough Council,29UM,31/03/2016,1140072,269.12,PREMIER PAPER GROUP LTD,                         ,PROPERTY SERVICES,Paper,Internal Trading Cost Centres
Swale Borough Council,29UM,31/03/2016,1140137,1250.00,QUEENBOROUGH FISHERY TRUST,                         ,PROPERTY SERVICES,Rent,Corporate & Democratic Core
Swale Borough Council,29UM,31/03/2016,1139867,715.00,REARDON PROPERTIES,                         ,HOUSING SERVICES,B & B - Landlords Payments,Housing
Swale Borough Council,29UM,31/03/2016,1139868,490.00,REARDON PROPERTIES,                         ,HOUSING SERVICES,B & B - Landlords Payments,Housing
Swale Borough Council,29UM,31/03/2016,1140043,755.00,REARDON PROPERTIES,                         ,HOUSING SERVICES,B & B - Landlords Payments,Housing
Swale Borough Council,29UM,31/03/2016,1140044,490.00,REARDON PROPERTIES,                         ,HOUSING SERVICES,B & B - Landlords Payments,Housing
Swale Borough Council,29UM,31/03/2016,1140162,980.75,REARDON PROPERTIES,                         ,HOUSING SERVICES,B & B - Landlords Payments,Housing
Swale Borough Council,29UM,31/03/2016,1140163,1153.85,REARDON PROPERTIES,                         ,HOUSING SERVICES,B & B - Landlords Payments,Housing
Swale Borough Council,29UM,31/03/2016,1140177,875.00,REARDON PROPERTIES,                         ,HOUSING SERVICES,B & B - Landlords Payments,Housing
Swale Borough Council,29UM,31/03/2016,1140178,455.00,REARDON PROPERTIES,                         ,HOUSING SERVICES,B & B - Landlords Payments,Housing
Swale Borough Council,29UM,31/03/2016,1139993,894.00,REVOLUTION EVENTS LTD,                         ,ECONOMIC DEVELOPMENT,Fees And Services,Planning and Development Services
Swale Borough Council,29UM,31/03/2016,1140220,320.93,RULE AND RULE,                         ,HOUSING SERVICES,RDS - Rent in Advance (Supporting People),Housing
Swale Borough Council,29UM,31/03/2016,1140182,7678.22,SHEPPEY MATTERS,3946296                  ,SUSTAINABLE SHEPPEY,BLF grant disbursement to partners,Environmental and Regulatory Services
Swale Borough Council,29UM,31/03/2016,1140035,300.00,SHEPPEY PAVILION LTD,                         ,COMMUNITY SAFETY,Grants & Subscriptions,Central Services to the Public
Swale Borough Council,29UM,31/03/2016,1140065,350.00,SITTINGBOURNE CHRISTMAS LIGHTS ASSOCIATION,                         ,COMMUNITY SAFETY,Grants & Subscriptions,Central Services to the Public
Swale Borough Council,29UM,31/03/2016,1140123,650.00,SITTINGBOURNE CHRISTMAS LIGHTS ASSOCIATION,                         ,COMMUNITY SAFETY,Grants & Subscriptions,Central Services to the Public
Swale Borough Council,29UM,31/03/2016,1140023,500.00,SITTINGBOURNE ORPHEUS CHORAL SOCIETY,                         ,COMMUNITY SAFETY,Grants & Subscriptions,Central Services to the Public
Swale Borough Council,29UM,31/03/2016,1140151,310.00,STANFORD & GREEN LIMITED,4691456                  ,REVENUE SERVICES,Fees - Bailiffs,Central Services to the Public
Swale Borough Council,29UM,31/03/2016,1140143,550.00,SWALE FIBROMYALGIA SUPPORT GROUP,                         ,COMMUNITY SAFETY,Grants & Subscriptions,Central Services to the Public
Swale Borough Council,29UM,31/03/2016,1140199,1000.00,TAYLOR BROTHERS LTD,                         ,LEISURE & OPEN SPACES,Maintenance - Grounds,Cultural and Related Services
Swale Borough Council,29UM,31/03/2016,1140200,250.00,TAYLOR BROTHERS LTD,                         ,SERVICE DELIVERY,Maintenance - Grounds,Cultural and Related Services
Swale Borough Council,29UM,31/03/2016,1140055,400.00,TEYNHAM COMMUNITY PRE-SCHOOL,                         ,COMMUNITY SAFETY,Grants & Subscriptions,Central Services to the Public
Swale Borough Council,29UM,31/03/2016,1140038,1500.00,THE DOLPHIN SAILING BARGE MUSEUM TRUST,                         ,COMMUNITY SAFETY,Grants & Subscriptions,Central Services to the Public
Swale Borough Council,29UM,31/03/2016,1140124,4993.55,THE NATIONAL LEAFLET COMPANY,02569979                 ,COMMUNICATIONS,Postage,Corporate & Democratic Core
Swale Borough Council,29UM,31/03/2016,1140118,3083.00,THOMSON REUTERS,1679046                  ,MKIP LEGAL SERVICES,"Books, Journals & e - resources",Internal Trading Cost Centres
Swale Borough Council,29UM,31/03/2016,1140119,-2130.00,THOMSON REUTERS,1679046                  ,MKIP LEGAL SERVICES,"Books, Journals & e - resources",Internal Trading Cost Centres
Swale Borough Council,29UM,31/03/2016,1140215,1870.00,TOP 2 BOTTOM LTD,4522006                  ,LEISURE & OPEN SPACES,Maintenance - Grounds,Cultural and Related Services
Swale Borough Council,29UM,31/03/2016,1140169,1357.76,TOPCOAT CONSTRUCTION LTD,3075151                  ,PROPERTY SERVICES,Non-Planned Building Maintenance,Corporate & Democratic Core
Swale Borough Council,29UM,31/03/2016,1140170,250.00,TOPCOAT CONSTRUCTION LTD,3075151                  ,LEISURE & OPEN SPACES,Non-Planned Building Maintenance,Environmental and Regulatory Services
Swale Borough Council,29UM,31/03/2016,1140171,250.00,TOPCOAT CONSTRUCTION LTD,3075151                  ,CONTRACT & PROCUREMENT,Non-Planned Building Maintenance,Environmental and Regulatory Services
Swale Borough Council,29UM,31/03/2016,1140172,450.00,TOPCOAT CONSTRUCTION LTD,3075151                  ,LEISURE & OPEN SPACES,Buildings Maintenance,Cultural and Related Services
Swale Borough Council,29UM,31/03/2016,1140173,350.00,TOPCOAT CONSTRUCTION LTD,3075151                  ,PROPERTY SERVICES,Buildings Maintenance,Trading Undertaking
Swale Borough Council,29UM,31/03/2016,1139830,1085.00,TRAFALGAR TAVERN LTD,07999329                 ,HOUSING SERVICES,B & B - Landlords Payments,Housing
Swale Borough Council,29UM,31/03/2016,1139832,1540.00,TRAFALGAR TAVERN LTD,07999329                 ,HOUSING SERVICES,B & B - Landlords Payments,Housing
Swale Borough Council,29UM,31/03/2016,1140216,1715.00,TRAFALGAR TAVERN LTD,07999329                 ,HOUSING SERVICES,B & B - Landlords Payments,Housing
Swale Borough Council,29UM,31/03/2016,1140217,1540.00,TRAFALGAR TAVERN LTD,07999329                 ,HOUSING SERVICES,B & B - Landlords Payments,Housing
Swale Borough Council,29UM,31/03/2016,1138396,-10257.00,TUNBRIDGE WELLS BOROUGH COUNCIL,                         ,MKIP ENVIRONMENTAL SERVICES,MKIP Charges for Environmental Services,Internal Trading Cost Centres
Swale Borough Council,29UM,31/03/2016,1139628,26571.16,TUNBRIDGE WELLS BOROUGH COUNCIL,                         ,DEMOCRATIC & ELECTORAL SERVICES,Grants & Subscriptions,Corporate & Democratic Core
Swale Borough Council,29UM,31/03/2016,1140029,500.00,TUNSTALL SHORT MAT BOWLS CLUB,                         ,COMMUNITY SAFETY,Grants & Subscriptions,Central Services to the Public
Swale Borough Council,29UM,31/03/2016,1140059,876.40,VENN GROUP LIMITED,                         ,MKIP LEGAL SERVICES,Agency/Contract Staff,Internal Trading Cost Centres
Swale Borough Council,29UM,31/03/2016,1140060,1230.00,VENN GROUP LIMITED,                         ,MKIP LEGAL SERVICES,Agency/Contract Staff,Internal Trading Cost Centres
Swale Borough Council,29UM,31/03/2016,1140061,1230.00,VENN GROUP LIMITED,                         ,MKIP LEGAL SERVICES,Agency/Contract Staff,Internal Trading Cost Centres
Swale Borough Council,29UM,31/03/2016,1140062,902.00,VENN GROUP LIMITED,                         ,MKIP LEGAL SERVICES,Agency/Contract Staff,Internal Trading Cost Centres
Swale Borough Council,29UM,31/03/2016,1140083,3212.63,WHISTL UK LIMITED,04417047                 ,REVENUE SERVICES,Postage,Central Services to the Public
Swale Borough Council,29UM,31/03/2016,1140083,1606.31,WHISTL UK LIMITED,04417047                 ,REVENUE SERVICES,Postage,Housing
Swale Borough Council,29UM,31/03/2016,1140083,659.62,WHISTL UK LIMITED,04417047                 ,PROPERTY SERVICES,Postage,Holding Codes
Swale Borough Council,29UM,31/03/2016,1139898,7505.00,WILKS HEAD & EVE,OC315743                 ,FINANCIAL SERVICES,Fees And Services,Internal Trading Cost Centres
Swale Borough Council,29UM,31/03/2016,1140181,7684.94,WORK THIS WAY,                         ,SUSTAINABLE SHEPPEY,BLF grant disbursement to partners,Environmental and Regulatory Services
